Cogmind - Beta 16.1 @@@ ROGUE MODE // 2026.02.10 @ 04:52:13 Player: H3-MLN Result: Establishing Free Derelict Territories! Performance ------------- Evolutions (9) 4500 Regions Visited (32) 6400 Robots Destroyed (425) 2125 Value Destroyed (20148) 20148 Prototype IDs (112) 2240 Alien Tech Used (1) 200 Bonus (42604) 42604 TOTAL SCORE: 78217 Bonus ------- High Alert Combat Kills 3961 Follower Combat Kills 2248 Hunted by Unchained 500 Entered Garrisons 1000 Entered DSFs 500 Network Hubs Disabled 600 Aligned with FarCom 300 Acquired ECA 300 Met Warlord at Base 500 MAIN.C Attacked Warlord 500 Warlord Defense Kills 1114 Built Enhanced Grunts 300 A7 Reached Mainframe 300 Met R17 at Cetus 500 Met R17 at Research 2000 Met Warlord at Research 2000 Invited to Help at Command 2000 Destroyed MAIN.C Guards 500 Met MAIN.C 5000 Destroyed MAIN.C Shell 5000 Destroyed MAIN.C 10000 Met Warlord at Command 2000 Win 3000 Friendly Fire -1519 Cogmind --------- Core Integrity 1317/1600 Matter 200/300 Energy 256/860 System Corruption 0% Temperature Cool (0) Movement Hovering (40) Location Free Derelict Territories Parts ------- > --- POWER (3) -------- Light Antimatter Reactor Light Quantum Reactor > --- PROPULSION (9) --- Cooled Antigrav System Combat Antigrav System Antigrav Array Antigrav Array Combat Linear Gravjet Combat Linear Gravjet Combat Linear Gravjet > --- UTILITY (10) ----- Experimental Cooling System High-capacity Storage Unit Experimental Energy Well Experimental Optical Array Tactical Coordination Suite Experimental Core Analyzer Centrium Medium Armor Plating Graphene Brace Improved Remote Shield Advanced Corruption Screen > --- WEAPON (3) ------- Helical Railgun Molecular Deconstructor > --- INVENTORY (20) --- Advanced Heavy Siege Treads Advanced Heavy Siege Treads Combat Linear Gravjet Improved Matter Compressor (300) Advanced Quantum Shading Machine Advanced Recoil Stabilizer Advanced Phase Shifter Advanced Powered Armor Vortex Cannon (16) Hypervelocity Railgun Helical Railgun Helical Railgun Enhanced Hardcell Cannon Hellfire Missile Launcher Peak State ------------ > --- POWER ------------ Compact Particle Reactor Improved Quantum Reactor Improved Quantum Reactor > --- PROPULSION ------- Antigrav Array Antigrav Array Cooled Linear Gravjet Combat Linear Gravjet Combat Linear Gravjet Combat Linear Gravjet Combat Linear Gravjet > --- UTILITY ---------- Advanced Cooling System High-capacity Storage Unit Experimental Optical Array Tactical Coordination Suite Experimental Core Analyzer Experimental Reaction Control System Advanced Powered Armor Experimental Hacking Suite System Mapper Advanced Corruption Screen > --- WEAPON ----------- Helical Railgun Helical Railgun Helical Railgun > --- INVENTORY -------- Cooled Antigrav System Combat Linear Gravjet Combat Linear Gravjet Advanced Energy Well Experimental Energy Well Improved Matter Compressor Advanced Quantum Shading Machine Centrium Medium Armor Plating Graphene Brace Improved Trap Extractor Improved Trap Extractor Vortex Cannon Hypervelocity Railgun Helical Railgun Helical Railgun Hellfire Missile Launcher Molecular Deconstructor Segregator [Rating: 222] Favorites ----------- Power Hybrid Fission Core Engine Cooled Deuterium Engine Power Core Hybrid Fission Core Reactor Vortex Chain Reactor Propulsion Combat Linear Gravjet Treads Light Treads Leg Potential Leg Wheel Wheel Hover Unit Combat Linear Gravjet Flight Unit Impulse Thruster Array Utility High-capacity Storage Unit Device Improved Heat Sink Storage High-capacity Storage Unit Processor Advanced Corruption Screen Hackware Hacking Suite Protection Centrium Medium Armor Plating Weapon Enhanced Autogun Energy Gun Gatling Laser Energy Cannon Matter Neutralizer Ballistic Gun Enhanced Autogun Ballistic Cannon Heavy Hardcell Cannon Launcher Grenade Launcher Special Weapon Plasma Cutter Impact Weapon Great Maul Slashing Weapon Ripper Piercing Weapon Spear Special Melee Weapon Advanced Datajack Build | -11 -10 -10 -10 -9 -8 -8 -8 -8 -8 -8 -7 -7 -6 -6 -6 -6 -5 -5 -5 -5 -5 -5 -4 -4 -4 -4 -4 -4 -3 -2 -1 -1 ------- Run | Yrd Mat Min Exi Min Mat Gar Mat Gar Mat Gar Fac DSF Fac Gar Fac Gar Fac Was Fac Upp Upp War Pro Fac Ext Cet Arc Hub Res Res Acc Com Slots Evolved 18 | . . . . . 4 . . . . . 2 . 2 . . . 2 . . . . . . 2 . . . . 2 2 2 . Power 2 | . . . . . . . . . . . . . 1 . . . . . . . . . . . . . . . . 1 . . Propulsion 7 | . . . . . 1 . . . . . 1 . . . . . 1 . . . . . . 2 . . . . 1 1 . . Utility 8 | . . . . . 2 . . . . . 1 . 1 . . . 1 . . . . . . . . . . . 1 . 2 . Weapon 1 | . . . . . 1 . . . . . . . . . . . . . . . . . . . . . . . . . . . Parts Attached 287 | 6 5 2 4 9 18 2 17 11 9 3 4 6 26 6 3 17 5 8 14 2 3 16 8 4 4 8 2 1 23 25 4 12 Power 33 | 1 1 . . 1 1 . 2 . 2 2 . 1 3 1 . 2 2 1 . . 1 1 1 . . . . . 3 3 . 4 Engine 10 | 1 . . . 1 1 . 1 . 1 . . 1 1 1 . . 1 . . . . . . . . . . . 1 . . . Core 10 | . 1 . . . . . 1 . 1 2 . . 1 . . 2 1 . . . 1 . . . . . . . . . . . Reactor 13 | . . . . . . . . . . . . . 1 . . . . 1 . . . 1 1 . . . . . 2 3 . 4 Propulsion 69 | 2 2 . . 3 3 . 4 2 3 . 3 1 7 . . 2 . 3 1 1 . 5 4 1 1 1 . . 9 8 1 2 Treads 17 | 1 1 . . 1 2 . 4 2 1 . 3 1 . . . . . . . . . . . . . 1 . . . . . . Leg 12 | . . . . . . . . . . . . . 5 . . 2 . 1 . 1 . 3 . . . . . . . . . . Wheel 10 | 1 1 . . 2 1 . . . 2 . . . 2 . . . . . . . . . . . . . . . 1 . . . Hover 27 | . . . . . . . . . . . . . . . . . . 1 1 . . 1 4 1 1 . . . 7 8 1 2 Flight 3 | . . . . . . . . . . . . . . . . . . 1 . . . 1 . . . . . . 1 . . . Utility 108 | 1 1 1 2 4 7 1 5 5 2 1 1 3 11 1 1 6 2 2 10 1 2 9 1 2 . 3 1 . 3 13 2 4 Device 42 | . . . . 3 1 . 2 1 2 1 . 1 4 . 1 3 1 2 2 . 2 6 . 1 . . . . 2 4 . 3 Storage 11 | 1 . . 2 . 1 . . . . . . . 1 . . 1 . . 2 . . . . . . . . . . 3 . . Processor 14 | . . . . . 1 . . 2 . . . . 2 . . 1 . . 2 . . 2 1 . . . . . . 2 1 . Hackware 17 | . . . . . 1 . . 1 . . . 2 4 . . . 1 . 3 . . . . 1 . . 1 . 1 1 1 . Protection 24 | . 1 1 . 1 3 1 3 1 . . 1 . . 1 . 1 . . 1 1 . 1 . . . 3 . . . 3 . 1 Artifact . | . . . . . . . . . . . . . . . . . . . . . . . . . . . . . . . . . Weapon 77 | 2 1 1 2 1 7 1 6 4 2 . . 1 5 4 2 7 1 2 3 . . 1 2 1 3 4 1 1 8 1 1 2 Energy Gun 13 | . . . . . 1 . 2 . . . . . . 2 . 4 . . 2 . . . . . . 1 . . 1 . . . Energy Cannon 9 | . . . . . 1 . . . . . . . 1 . 2 1 . . . . . 1 1 . 1 . . . . . . 1 Ballistic Gun 31 | 2 1 . 1 1 3 . 3 3 1 . . . 1 2 . 2 1 1 . . . . . . 1 1 . . 6 . 1 . Ballistic Cannon 4 | . . . . . . . . . 1 . . . 1 . . . . 1 . . . . . . . . . . 1 . . . Launcher 5 | . . 1 . . 1 . . 1 . . . 1 . . . . . . . . . . . . . . . . . 1 . . Special Weapon 3 | . . . . . . 1 . . . . . . . . . . . . 1 . . . 1 . . . . . . . . . Impact Weapon 2 | . . . . . . . 1 . . . . . 1 . . . . . . . . . . . . . . . . . . . Slashing Weapon 4 | . . . . . . . . . . . . . . . . . . . . . . . . . . 2 . 1 . . . 1 Piercing Weapon 1 | . . . . . 1 . . . . . . . . . . . . . . . . . . . . . . . . . . . Special Melee Weapon 5 | . . . 1 . . . . . . . . . 1 . . . . . . . . . . 1 1 . 1 . . . . . Unidentified Prototypes 45 | . . . . 1 3 . . . 1 . . . . . 1 . . 2 2 . . 13 2 2 . 4 . 1 3 8 . 2 Parts Lost 51 | . 1 . . . 2 . 11 4 . 1 . 1 . 5 . 6 . . . 1 2 . . 1 1 . . 4 1 1 . 9 Power 13 | . . . . . . . 2 . . 1 . . . 1 . 2 . . . . 1 . . . . . . 1 . . . 5 Propulsion 12 | . 1 . . . . . 2 1 . . . . . . . . . . . 1 . . . . 1 . . 2 1 1 . 2 Utility 10 | . . . . . 1 . 3 1 . . . 1 . 1 . 1 . . . . 1 . . . . . . . . . . 1 Weapon 16 | . . . . . 1 . 4 2 . . . . . 3 . 3 . . . . . . . 1 . . . 1 . . . 1 Highest Loss Streak 8 | . 1 . . . 1 . 5 4 . 1 . 1 . 5 . 3 . . . 1 2 . . 1 1 . . 3 1 1 . 8 To Critical Strikes . | . . . . . . . . . . . . . . . . . . . . . . . . . . . . . . . . . Average Backups 17 | 1 7 8 8 12 14 19 19 19 18 19 18 19 18 14 13 16 17 17 16 18 18 18 18 16 16 17 17 17 17 18 17 16 Power . | . . . . . . . . . . . . . . . . . . . . . . . 1 1 1 1 1 1 . . . . Propulsion 2 | 1 2 2 2 3 2 3 3 4 3 3 3 4 3 1 1 1 1 2 3 6 6 6 5 . . . . . . 1 2 2 Utility 8 | . 1 3 3 5 6 10 11 9 8 9 8 7 8 8 9 7 8 7 6 4 4 5 7 8 9 10 10 11 9 9 8 6 Weapon 5 | . 2 2 2 2 3 4 3 4 5 6 5 4 5 4 3 7 7 7 6 6 6 5 4 5 5 6 6 5 6 7 7 7 Tool/Special . | . . . . . . . . . . . . . . . . . . . . . . . . . . . . . . . . . Unused Backups 71 | . 5 . . 3 4 . 7 7 2 1 . 4 6 . . 3 2 3 2 . 2 1 . 2 . 2 . . 1 7 . 7 Power 3 | . 1 . . . . . . . . . . 1 . . . . . . . . . . . . . . . . 1 . . . Propulsion 20 | . 2 . . . 1 . 2 3 . . . 2 4 . . . 1 1 . . . 1 . . . . . . . . . 3 Utility 32 | . . . . 1 3 . 4 2 . 1 . 1 2 . . 3 1 2 1 . 1 . . 1 . 2 . . . 5 . 2 Weapon 14 | . 2 . . 2 . . 1 2 2 . . . . . . . . . 1 . . . . . . . . . . 2 . 2 Tool/Special 2 | . . . . . . . . . . . . . . . . . . . . . 1 . . 1 . . . . . . . . Average Slot Usage (%) 90 | . 92 100 85 100 98 100 97 98 99 99 86 90 82 88 93 92 87 83 92 87 87 89 84 81 86 83 83 87 87 89 91 85 Engine 2 | . 2 . . 8 9 9 6 9 7 . . 4 6 5 6 2 4 . . . . . . . . . . . . . . . Core 2 | . 11 14 14 5 . . . . 1 8 7 2 . 6 6 9 5 5 5 5 7 2 . . . . . . . . . . Reactor 2 | . . . . . . . . . . . . . . . . . . 4 5 5 2 3 5 5 5 5 5 5 8 12 12 8 Treads 8 | . 14 14 14 14 20 27 26 26 19 27 25 30 9 . . . . . . . . . . . . . . . . . . . Leg 8 | . . . . . . . . . . . . . 12 26 26 26 22 22 17 22 23 27 24 . . . . . . . . . Wheel 1 | . 14 14 14 14 5 . . . 7 . . . 2 . . . . . . . . . . . . . . . . . . . Hover 8 | . . . . . . . . . . . . . . . . . . . 4 . . . 3 30 28 31 31 31 28 29 28 27 Device 7 | . . . . . 8 . 5 9 9 9 7 7 7 3 6 8 7 11 7 11 13 16 13 10 10 5 . . 6 12 12 16 Storage 6 | . 14 14 14 14 9 9 9 9 9 9 7 7 6 6 6 6 5 5 5 5 5 5 5 5 5 5 5 5 4 4 4 6 Processor 9 | . . . . . . 9 1 8 9 9 7 5 1 6 6 10 11 11 15 17 13 11 14 15 15 15 15 15 14 10 11 12 Hackware 4 | . . . . . 6 9 9 1 . . . . 9 9 6 . 2 5 9 . . . . 4 5 5 9 10 8 4 7 1 Protection 6 | . 6 14 14 13 11 9 11 8 8 9 7 7 5 6 6 5 5 . . 4 5 5 4 . . 4 5 5 2 2 4 4 Energy Gun 3 | . . . . . 8 5 3 7 8 8 7 6 4 3 3 12 11 2 1 . . . . . . . . . . . . . Energy Cannon 1 | . . . . . . . . . . . . . . . 2 1 . 3 4 3 3 3 4 5 4 . . . . . . 1 Ballistic Gun 9 | . 28 25 1 27 18 16 22 13 17 9 14 15 7 8 13 5 5 . 8 1 1 4 . 2 6 4 4 2 9 12 11 7 Ballistic Cannon 1 | . . . . . . . . . . 8 . . . 2 . . . 4 . 5 5 3 4 . . . . . . . . . Peak Build Rating 222 | 6 11 12 14 29 44 44 44 41 42 41 58 63 79 80 82 85 93 110 121 124 123 153 155 170 166 169 165 167 181 212 222 222 Average Rating 96 | 4 9 11 11 18 37 43 39 37 38 39 50 60 67 77 80 82 91 105 106 120 117 136 148 157 159 157 155 161 164 201 220 202 On Entrance 89 | . 6 11 12 14 25 44 42 36 41 39 41 58 63 79 79 82 80 93 101 121 115 116 153 119 166 163 149 162 132 181 206 220 Avg Prop Armor Cover (%) 7 | 15 10 9 11 8 11 . . . 12 6 . . 8 . . . . 3 1 . . . . . . 3 17 . 1 1 . 9 Naked Turns . | . . . . . . . . . . . . . . . . . . . . . . . . . . . . . . . . . Heaviest Build 130 | 13 19 20 32 48 70 69 69 89 85 84 99 107 117 105 95 105 113 105 98 100 105 130 127 113 97 110 107 93 99 128 129 129 Greatest Support 155 | 16 16 10 10 10 74 74 74 60 60 60 104 104 104 98 98 100 110 110 120 120 115 140 140 110 94 105 93 93 112 155 130 131 Greatest Overweight (x) 30 | . 1 1 3 4 6 . 1 1 7 2 1 1 6 1 . 1 1 1 . 1 . 1 . 1 1 1 30 . 1 1 . 2 Average Overweight (x) . | . . 1 1 3 2 . . 1 3 1 . . . . . . . . . . . . . . . . 19 . . . . . Largest Inventory Capacity 20 | 8 8 8 15 15 20 20 20 20 20 20 20 20 20 20 20 20 20 20 20 20 20 20 20 20 20 20 20 20 20 20 20 20 Average Capacity 19 | 6 8 8 10 15 15 20 20 20 20 20 20 20 20 20 20 20 20 20 20 20 20 20 20 20 20 20 20 20 20 20 20 20 Most Carried 20 | 5 8 8 10 15 20 20 20 20 20 20 20 20 20 20 17 20 20 20 20 20 20 20 20 20 20 20 20 20 20 20 20 20 Average Carried 18 | 2 7 8 8 13 15 19 19 19 19 19 18 19 19 16 15 18 17 19 18 19 19 19 19 18 19 19 19 19 19 19 18 18 Final Capacity 20 | 8 8 8 15 15 20 20 20 20 20 20 20 20 20 20 20 20 20 20 20 20 20 20 20 20 20 20 20 20 20 20 20 20 Final Carried 20 | 5 8 8 9 15 19 20 20 20 20 20 20 20 20 14 17 17 20 20 20 20 19 20 20 19 19 20 20 19 20 20 18 16 Class Distribution -------------------- 23% | Trapper-Mutant 16% | Scavenger-Skirmisher 10% | Skirmisher 9% | Scavenger-Mutant 8% | Mutant 7% | Trapper-Tank 7% | Trapper-Skirmisher 3% | Scavenger-Tank 3% | Tank Dominant Class ---------------- Mutant | -10/Materials Mutant | -10/Mines Mutant | -10/Exiles Mutant | -9/Mines Skirmisher | -8/Materials Skirmisher | -8/Garrison Scavenger-Skirmisher | -8/Materials Scavenger-Skirmisher | -8/Garrison Scavenger-Skirmisher | -8/Materials Scavenger-Skirmisher | -8/Garrison Scavenger-Tank | -7/Factory Trapper-Tank | -7/DSF Trapper-Mutant | -6/Factory Trapper-Skirmisher | -6/Garrison Trapper-Skirmisher | -6/Factory Scavenger-Skirmisher | -6/Garrison Scavenger-Skirmisher | -5/Factory Scavenger-Mutant | -5/Waste Skirmisher | -5/Factory Skirmisher | -5/Upper Caves Skirmisher | -5/Upper Caves Trapper-Tank | -5/Warlord Trapper-Tank | -4/Proximity Caves Trapper-Scout | -4/Factory Trapper-Mutant | -4/Extension Trapper-Mutant | -4/Cetus Trapper-Mutant | -4/Archives Trapper-Mutant | -4/Hub_04(d) Trapper-Sprinter | -3/Research Trapper-Skirmisher | -2/Research Hacker-Skirmisher | -1/Access Scavenger-Mutant | -1/Command Resources | -11 -10 -10 -10 -9 -8 -8 -8 -8 -8 -8 -7 -7 -6 -6 -6 -6 -5 -5 -5 -5 -5 -5 -4 -4 -4 -4 -4 -4 -3 -2 -1 -1 ----------- Run | Yrd Mat Min Exi Min Mat Gar Mat Gar Mat Gar Fac DSF Fac Gar Fac Gar Fac Was Fac Upp Upp War Pro Fac Ext Cet Arc Hub Res Res Acc Com Matter Collected 15282 | 251 185 180 . 505 1214 74 1217 708 384 373 . 289 776 831 71 922 629 199 472 591 240 606 332 612 566 298 100 39 821 589 504 704 Remotely . | . . . . . . . . . . . . . . . . . . . . . . . . . . . . . . . . . Salvage Created 20372 | 18 378 41 . 385 1960 40 2002 1326 1033 745 . 400 992 739 71 1943 614 1115 431 322 277 440 257 501 580 212 232 414 1553 396 781 174 Parts 966 | 2 16 . . 33 139 3 96 74 49 45 . 11 39 34 3 94 18 7 25 23 12 16 8 27 23 12 17 27 52 24 26 11 Haulers Intercepted 25 | . 1 . . . 6 . 4 . 3 . . . 1 . . . . . 2 . . . . . . . . . 6 2 . . Recyclers Shooed 10 | . 1 . . . 2 . . . 1 . . . 1 . . . . . . . . . . . . . . . 1 1 1 2 Parts Field Recycled . | . . . . . . . . . . . . . . . . . . . . . . . . . . . . . . . . . Retrieved Matter . | . . . . . . . . . . . . . . . . . . . . . . . . . . . . . . . . . Parts Self-Destructed 36 | . . . . . . . . . . . . . . . . . . . . 14 17 . 5 . . . . . . . . . Prevented 2 | . . . . . . . . . . . . . . . . . . . . 2 . . . . . . . . . . . . Parts Restored . | . . . . . . . . . . . . . . . . . . . . . . . . . . . . . . . . . Kills | -11 -10 -10 -10 -9 -8 -8 -8 -8 -8 -8 -7 -7 -6 -6 -6 -6 -5 -5 -5 -5 -5 -5 -4 -4 -4 -4 -4 -4 -3 -2 -1 -1 ------- Run | Yrd Mat Min Exi Min Mat Gar Mat Gar Mat Gar Fac DSF Fac Gar Fac Gar Fac Was Fac Upp Upp War Pro Fac Ext Cet Arc Hub Res Res Acc Com Combat Hostiles Destroyed 312 | . 4 8 . 10 37 1 31 29 14 23 . 8 11 19 1 40 6 6 3 5 8 8 2 5 6 4 1 4 6 3 6 3 Melee 2 | . . . . . . . . . . . . . . . . . . . . . . . . . . . . 2 . . . . Guns 199 | . 4 2 . 5 29 1 27 21 14 13 . 5 7 8 1 28 5 5 1 . . 2 . 1 3 2 . 1 4 3 6 1 Cannons 48 | . . . . . . . . . . 4 . . . 6 . 3 . . 1 5 8 6 2 4 2 2 1 . 2 . . 2 AOE 56 | . . 6 . 5 8 . 4 6 . 6 . 3 4 4 . 8 . 1 . . . . . . 1 . . . . . . . Classes Destroyed 26 | 1 4 1 . 2 9 1 . 1 . . . . . . . . . 1 . 1 . 2 1 . . . . . . 1 . 1 Worker 20 | . . . . 2 2 . 1 . 2 . . . 2 . . . 1 . 2 . . . . . . . . . 2 1 4 1 Builder 14 | . . . . . 3 . 1 . . . . . 3 . . . . . . . . . . . . . . 1 4 . 2 . Tunneler 3 | 1 . . . . . . 1 . . . . . . . . . . . . . . . . . . . . 1 . . . . Hauler 25 | . 1 . . . 6 . 4 . 3 . . . 1 . . . . . 2 . . . . . . . . . 6 2 . . Recycler 25 | . 2 . . 2 2 . 3 . 3 . . . 4 . . . 2 . . . . . . 1 1 . . 1 3 . 1 . Minesweeper 1 | . . . . . . . . . . . . . . . . . . . . 1 . . . . . . . . . . . . Mechanic 5 | . . . . . 1 . 2 . . . . . . . . . 1 . . . . . . . . . . . . . . 1 Operator 18 | . . . . . 1 . 1 . 1 . . . 1 . . . 1 . 2 . . . . 2 1 . 5 . 2 . 1 . Watcher 8 | . 1 . . . 1 . 1 1 1 . . . . . . . . . 1 . . . . . . 2 . . . . . . Swarmer 71 | . . . . 5 11 . . 7 3 7 . 2 4 6 . 16 . . . . 4 . . . . 3 . . . 2 . 1 Grunt 108 | . 4 . . 5 13 . 22 10 7 7 . 3 . 6 . 10 1 . . 4 1 4 . . 2 . . . 4 . 5 . Brawler 11 | . . . . . 1 . 2 . . 2 . . . 1 . 2 1 . . . . 1 . . . . . . 1 . . . Duelist 9 | . . . . . 2 . 1 1 . 2 . 1 . 1 . . . . . . 1 . . . . . . . . . . . Protector 4 | . . . . . 1 . 2 . . . . . . . . . . . . . . . . . . . . 1 . . . . Sentry 45 | . . . . . 6 . 4 7 4 . . . . . 1 8 . . 1 1 2 . 1 1 3 . 1 1 1 1 1 1 Demolisher 1 | . . . . . . . . . . . . . . . . . . . . . . 1 . . . . . . . . . . Specialist 5 | . . . . . 2 . . . . . . 1 . 2 . . . . . . . . . . . . . . . . . . Hunter 13 | . . . . . 1 . . 1 . . . 1 4 1 . 1 1 . . . . . . 2 1 . . . . . . . Programmer 24 | . . . . . . 1 . 2 . 5 . . 3 1 . 2 3 . 2 . . 1 . 2 . . . 2 . . . . Heavy 1 | . . . . . . . . . . . . . . . . . . . . . . . . . . . . . . . . 1 Behemoth 4 | . . . . . . . . 1 . . . . . 1 . 1 . . . . . . 1 . . . . . . . . . Compactor 6 | . . . . . . . . . . . . . . . . . . 6 . . . . . . . . . . . . . . Cetus Guard 1 | . . . . . . . . . . . . . . . . . . . . . . . . . . 1 . . . . . . Executioner 1 | . . . . . . . . . . . . . . . . . . . . . . 1 . . . . . . . . . . Samaritan 1 | . . . . . . . . . . . . . . . . . . . . . . . . . . . . . . 1 . . Tinkerer 1 | . . . . . . . . . . . . . . . . . . . . . . . 1 . . . . . . . . . Assembled 8 | . . 8 . . . . . . . . . . . . . . . . . . . . . . . . . . . . . . Commander 1 | . . . . . . . . . . . . . . . . . . . . 1 . . . . . . . . . . . . Best Kill Streak 10 | 1 4 5 . 4 9 1 10 7 6 4 . 5 4 5 1 10 4 2 2 5 4 3 1 2 2 2 2 3 4 3 6 2 Combat Bots Only 10 | . 4 5 . 4 9 1 9 7 4 4 . 5 4 5 1 10 2 2 2 5 4 3 1 2 1 2 1 1 4 3 3 1 Max Kills in Single Turn 5 | 1 1 2 . 3 5 1 3 2 2 3 . 2 2 2 1 2 2 1 2 1 1 2 1 1 1 1 1 2 3 1 2 1 Gunslinging 1 | . . . . . . . 1 1 . . . 1 . 1 . 1 . . . . . . . . . . . . 1 . . . Exploded 3 | . . 2 . 3 3 . 3 2 . 3 . 2 2 2 . 2 . 1 . . . . . . 1 . . . . . . . Melee 1 | . . . . . . . . . . . . . . . . . . . . . . . . . . . . 1 . . . . Uniques/NPCs Destroyed 1 | . . . . . . . . . . . . . . . . . . . . . . . . . . . . . 1 . . . Revision 17++ (-3/Research) Combat | -11 -10 -10 -10 -9 -8 -8 -8 -8 -8 -8 -7 -7 -6 -6 -6 -6 -5 -5 -5 -5 -5 -5 -4 -4 -4 -4 -4 -4 -3 -2 -1 -1 -------- Run | Yrd Mat Min Exi Min Mat Gar Mat Gar Mat Gar Fac DSF Fac Gar Fac Gar Fac Was Fac Upp Upp War Pro Fac Ext Cet Arc Hub Res Res Acc Com Hostile Shots Fired 1629 | . 22 14 . 29 97 . 145 87 20 60 . 40 95 178 18 266 40 . 14 43 19 16 11 38 55 20 . 19 57 10 101 115 Missed 531 | . 3 7 . 8 21 . 31 24 2 16 . 13 16 46 8 99 16 . 4 13 8 8 5 10 31 9 . 3 19 4 61 46 Hits 1098 | . 19 7 . 21 76 . 114 63 18 44 . 27 79 132 10 167 24 . 10 30 11 8 6 28 24 11 . 16 38 6 40 69 Melee 21 | . . . . . 2 . 4 . . . . 5 . 8 . . . . . . . 1 . . . . . 1 . . . . Projectile 1077 | . 19 7 . 21 74 . 110 63 18 44 . 22 79 124 10 167 24 . 10 30 11 7 6 28 24 11 . 15 38 6 40 69 AOE 7 | . . . . . . . . 1 . . . . . . . . . . . . . 2 . . . . . . . 1 1 2 Critical Strikes 57 | . . . . . 1 . 7 3 . 5 . 3 5 8 . 6 . . . 2 . 1 . 1 . 2 . 2 . . 3 8 Actively Blocked 11 | . . . . . . . . . . . . . . . . . . . . . . . . 1 . 2 . . . . . 8 Part Disruptions 7 | . . . . . . . . . . 1 . . . . . . . . 1 . . . . . . . . . . . . 5 Damage Taken 18516 | . 220 112 . 249 1116 . 2147 1162 212 545 . 296 886 1779 71 1853 461 . 210 487 209 287 116 422 476 224 . 594 845 259 1019 2259 Core 1487 | . 10 . . 16 76 . 176 76 44 86 . 9 80 90 6 146 10 . . 57 12 15 18 48 38 17 . 61 65 48 83 200 Absorbed by Shields 1331 | . . . . . . . . . . . . 114 113 . . 259 . . . 142 23 85 36 89 81 80 . . . . . 309 Ignored by Resistances 1077 | . . . . . . . . 31 22 41 . 128 273 228 . 228 126 . . . . . . . . . . . . . . . Regen/Repaired (Parts) 1956 | . 97 . . . 72 . 140 . 52 . . . 395 . . . . . 612 . . 168 . 420 . . . . . . . . Core Remaining (%) 81 | 100 . . . 89 . . . . . 16 . 98 . . . 62 . . . . . . 88 . . . . 85 95 96 . 82 Volleys Fired 1218 | 1 26 15 . 29 104 15 94 57 31 36 . 17 49 76 8 119 28 101 39 33 27 24 21 37 46 25 2 10 43 17 33 55 Largest 3 | 2 2 2 . 2 3 3 3 3 3 3 . 3 3 3 3 3 3 3 3 2 2 2 2 2 3 2 1 2 3 3 3 3 Hottest 248 | 40 40 40 . 48 122 119 150 133 147 147 . 140 140 140 140 240 193 248 210 93 173 173 98 98 110 108 68 240 116 114 114 196 Shots Fired 2499 | 2 52 25 . 55 293 21 265 122 90 88 . 43 110 123 12 227 65 141 76 46 38 36 32 49 77 31 2 11 114 51 95 107 Gun 1993 | 2 52 19 . 52 287 21 262 115 89 55 . 41 104 82 4 191 65 60 44 33 . 11 2 5 57 25 . 8 98 51 93 65 Cannon 446 | . . . . . . . . . 1 30 . . 3 38 8 26 . 81 31 13 38 25 30 44 20 6 2 3 16 . 2 29 Launcher 46 | . . 6 . 3 6 . 3 7 . 3 . 2 3 3 . 10 . . . . . . . . . . . . . . . . Special 14 | . . . . . . . . . . . . . . . . . . . 1 . . . . . . . . . . . . 13 Kinetic 1708 | 2 52 19 . 52 211 6 239 87 62 61 . 30 74 107 4 102 27 . 37 46 15 31 19 24 57 27 2 6 100 51 93 65 Thermal 711 | . . . . . 76 15 22 28 28 24 . 11 33 13 8 115 38 141 38 . 23 5 12 25 19 4 . 4 . . . 29 Explosive 36 | . . 6 . 3 6 . 3 . . . . 2 3 3 . 10 . . . . . . . . . . . . . . . . Electromagnetic 20 | . . . . . . . 1 7 . 3 . . . . . . . . . . . . . . 1 . . . 8 . . . Entropic 10 | . . . . . . . . . . . . . . . . . . . . . . . 1 . . . . 1 6 . 2 . Robot Hit Streak 31 | 1 13 4 . 6 11 3 21 14 11 13 . 9 15 10 7 16 10 31 9 16 4 8 6 8 11 13 5 . 11 17 13 7 Robot Miss Streak 7 | . 5 4 . 3 7 1 3 4 3 3 . 3 4 4 . 4 3 2 5 2 2 2 2 3 3 5 . . 4 4 3 7 Penetration Max 2 | . . . . . . . 1 1 1 1 . 1 1 1 . 1 . . . 1 . . . . 1 1 . . 2 1 1 2 Secondary Targets 35 | . . . . 1 2 . 6 7 2 . . 2 . 2 . 7 . 1 . . . . . . 1 . . . 2 . 2 . Max Gunslinging Chain 2 | . . . . 1 1 . 1 1 1 . . 1 . 1 . 2 . 1 . . . . . . 1 . . . 1 . 1 . Shots Hit Robots 1561 | 1 38 10 4 38 179 5 194 87 57 50 . 31 76 65 5 158 49 55 28 37 14 18 10 24 44 19 14 9 90 37 53 62 Core Hits 863 | 1 15 14 . 26 91 1 91 49 43 43 . 18 38 37 2 117 30 22 14 14 10 9 7 12 22 10 7 17 41 17 30 15 Critical Kills 19 | . . . . . . . . . . . . . . 1 . 2 . . 2 . . 2 1 1 3 2 . 1 4 . . . Critical Parts Destroyed 37 | . . . . . 1 . 3 4 1 . . . 1 2 . . 1 . . 1 . 2 . 1 9 1 . . 3 2 4 1 Critical Strikes 78 | . . . . . 5 . 3 4 1 . . . 2 6 . 2 1 1 2 1 2 5 2 4 12 4 4 1 9 2 4 1 Burn 4 | . . . . . 4 . . . . . . . . . . . . . . . . . . . . . . . . . . . Meltdown 2 | . . . . . . . . . . . . . . . . . . . 2 . . . . . . . . . . . . . Destroy 50 | . . . . . 1 . 3 . 1 . . . . 2 . 2 1 1 . 1 . 4 1 2 12 4 . 1 7 2 4 1 Blast 11 | . . . . . . . . . . . . . 1 3 . . . . . . 2 1 1 2 . . 1 . . . . . Smash 6 | . . . . . . . . 4 . . . . 1 1 . . . . . . . . . . . . . . . . . . Sever 3 | . . . . . . . . . . . . . . . . . . . . . . . . . . . 3 . . . . . Sunder 2 | . . . . . . . . . . . . . . . . . . . . . . . . . . . . . 2 . . . Melee Attacks 125 | . . . 4 . 2 6 8 16 . 1 . . 11 3 . 3 . . . . . . . . 2 3 12 20 30 . . 4 Thermal 4 | . . . . . . . . . . . . . . . . . . . . . . . . . . . . . . . . 4 Impact 36 | . . . . . . . 8 16 . 1 . . 5 3 . 3 . . . . . . . . . . . . . . . . Slashing 62 | . . . . . . . . . . . . . . . . . . . . . . . . . . 1 12 20 29 . . . Piercing 8 | . . . . . 2 6 . . . . . . . . . . . . . . . . . . . . . . . . . . Sneak Attacks 36 | . . . 4 . . . . 2 . . . . 10 1 . . . . . . . . . . 2 2 7 2 6 . . . Combat Hostiles . | . . . . . . . . . . . . . . . . . . . . . . . . . . . . . . . . . Follow-up Attacks . | . . . . . . . . . . . . . . . . . . . . . . . . . . . . . . . . . Damage Inflicted 46703 | 10 468 392 . 777 3692 114 4401 2468 1443 1488 . 954 2410 2711 128 5010 1190 1523 910 1076 973 1205 464 974 894 434 1013 925 3779 1141 1743 1993 Guns 29186 | 10 468 107 . 533 3087 114 3671 1443 1443 906 . 631 1407 927 61 3446 1180 1523 442 483 . 34 9 24 416 149 . 17 2359 1141 1743 1412 Cannons 8955 | . . . . . . . . . . 368 . . 54 1360 67 486 . . 468 593 973 1136 455 950 425 242 145 . 652 . . 581 Explosions 4972 | . . 285 . 244 605 . 718 238 . 214 . 323 507 312 . 1078 . . . . . . . . . . . 448 . . . . Melee 3468 | . . . . . . . . 787 . . . . 430 112 . . . . . . . . . . . 43 868 460 768 . . . Ramming 122 | . . . . . . . 12 . . . . . 12 . . . 10 . . . . 35 . . 53 . . . . . . . Kinetic 25725 | 10 468 107 . 533 2106 89 3215 834 790 704 . 386 744 2064 61 1577 305 . 419 1076 647 1057 304 559 416 319 145 17 2477 1141 1743 1412 Thermal 12009 | . . . . . 981 25 456 609 653 570 . 245 889 223 67 2355 875 1523 491 . 326 113 160 415 380 72 . . . . . 581 Explosive 3900 | . . 285 . 244 605 . 718 . . . . 323 335 312 . 1078 . . . . . . . . . . . . . . . . Electromagnetic 1109 | . . . . . . . . 238 . 214 . . . . . . . . . . . . . . 45 . . 448 164 . . . Impact 1329 | . . . . . . . . 787 . . . . 430 112 . . . . . . . . . . . . . . . . . . Slashing 2139 | . . . . . . . . . . . . . . . . . . . . . . . . . . 43 868 460 768 . . . Piercing . | . . . . . . . . . . . . . . . . . . . . . . . . . . . . . . . . . Entropic 370 | . . . . . . . . . . . . . . . . . . . . . . . . . . . . . 370 . . . Highest Corruption 5 | . 3 3 3 3 . . . 2 2 3 . . 2 5 5 . 2 2 . . . . . . . . . . . . . . Average Corruption 2 | . 2 3 3 3 . . . 1 1 2 . . 1 5 3 . 1 1 . . . . . . . . . . . . . . Corruption Purged 12 | . . . . . . . . . 3 . . . 2 . 5 . . 2 . . . . . . . . . . . . . . Corruption Blocked 21 | . . . . . . . . . . . . . . . . . . . 5 . . . . . . . . 4 . . . 12 Effects 131 | . 1 18 4 23 . . . 20 6 13 . . 29 13 . . 3 1 . . . . . . . . . . . . . . Message Errors 33 | . . 5 1 7 . . . 5 3 3 . . 5 3 . . 1 . . . . . . . . . . . . . . . Matter Fused 29 | . . 4 1 7 . . . 4 1 1 . . 4 5 . . 2 . . . . . . . . . . . . . . . Heat Flow Errors 19 | . . 2 . 4 . . . 3 1 1 . . 8 . . . . . . . . . . . . . . . . . . . Energy Discharges 17 | . 1 2 . 1 . . . 2 1 1 . . 4 4 . . . 1 . . . . . . . . . . . . . . Parts Rejected 2 | . . . . . . . . 2 . . . . . . . . . . . . . . . . . . . . . . . . Parts Fused 1 | . . . . 1 . . . . . . . . . . . . . . . . . . . . . . . . . . . . Data Loss (minor) 17 | . . 3 2 2 . . . 2 . 2 . . 5 1 . . . . . . . . . . . . . . . . . . Data Loss (major) 7 | . . . . . . . . . . 5 . . 2 . . . . . . . . . . . . . . . . . . . Misfires 4 | . . 1 . . . . . 2 . . . . 1 . . . . . . . . . . . . . . . . . . . Alerts 2 | . . 1 . 1 . . . . . . . . . . . . . . . . . . . . . . . . . . . . Overload Shots 8 | . . . . . . . . . . . . . . . . 1 . . . . . 1 . 4 . . . 2 . . . . Overflow Damage 2147 | . . 10 . 4 18 . 8 517 . 37 . . 435 173 . 30 . . . 6 15 240 . 64 . 62 261 79 185 . . 3 Projectiles 557 | . . . . . . . . . . 21 . . 19 97 . 30 . . . 6 15 240 . 64 . 62 . . . . . 3 Explosions 175 | . . 10 . 4 18 . 8 . . 16 . . 66 13 . . . . . . . . . . . . . 40 . . . . Melee 1415 | . . . . . . . . 517 . . . . 350 63 . . . . . . . . . . . . 261 39 185 . . . Knockbacks 23 | . . . . . . . . 2 . 1 . . 2 4 . . . . . 2 1 5 . . 1 1 . . 4 . . . Impact 5 | . . . . . . . . 2 . . . . 2 . . . . . . . . . . . 1 . . . . . . . Kinetic 16 | . . . . . . . . . . 1 . . . 4 . . . . . 1 1 4 . . . 1 . . 4 . . . Secondary 2 | . . . . . . . . . . . . . . . . . . . . 1 . 1 . . . . . . . . . . Self-Inflicted Damage 591 | . . . . . . . 130 16 . 23 . 34 232 . . 32 . . . . . . . . 26 . . 98 . . . . Shots 13 | . . . . . . . 3 1 . 2 . 1 4 . . 1 . . . . . . . . . . . 1 . . . . Rammed 4 | . . . . . . . 2 . . . . . . . . . . . . . . . . . 2 . . . . . . . Targets Rammed 7 | . . . . . . . 2 . . . . . 1 . . . 1 . . . . 1 . . 2 . . . . . . . Kicked 2 | . . . . . . . . . . . . . . . . . 1 . . . . 1 . . . . . . . . . . Crushed 1 | . . . . . . . . . . . . . 1 . . . . . . . . . . . . . . . . . . . Highest Temperature 420 | . 12 212 . 219 265 70 252 307 223 219 . 90 253 176 289 409 158 278 248 24 6 293 92 151 60 159 26 420 202 58 8 88 Average Temperature 58 | . 7 63 . 63 73 19 76 90 56 77 . 36 56 55 102 112 51 89 60 15 4 68 32 45 8 17 6 28 62 24 5 28 Received Heat Transfer 4449 | . 120 . . 129 396 . 1035 618 99 54 . 12 . 678 18 413 24 . 18 208 . 35 7 . 123 40 . . 222 18 117 65 Effects 10 | . . . . . . . 2 . . . . . . . . 3 . . . . . 1 . . . . . 4 . . . . Shutdowns 1 | . . . . . . . . . . . . . . . . 1 . . . . . . . . . . . . . . . . Energy Bleed 2 | . . . . . . . . . . . . . . . . 1 . . . . . 1 . . . . . . . . . . Interference 3 | . . . . . . . 2 . . . . . . . . 1 . . . . . . . . . . . . . . . . Damage (major) 4 | . . . . . . . . . . . . . . . . . . . . . . . . . . . . 4 . . . . Siege Activations . | . . . . . . . . . . . . . . . . . . . . . . . . . . . . . . . . . Martial Activations . | . . . . . . . . . . . . . . . . . . . . . . . . . . . . . . . . . Shielding Activations . | . . . . . . . . . . . . . . . . . . . . . . . . . . . . . . . . . Robots Disrupted 1 | . . . . . . . . . . . . . . . . . . . . . . . . . . . . . 1 . . . Combat Hostiles 1 | . . . . . . . . . . . . . . . . . . . . . . . . . . . . . 1 . . . Robots Corrupted 7 | . . . . . . . . 3 . . . . 2 1 . . . . . . . . . . . . . 1 . . . . Combat Hostiles 4 | . . . . . . . . 2 . . . . . 1 . . . . . . . . . . . . . 1 . . . . Parts Fried 25 | . . . . . . . . 5 . . . . 11 2 . . . . . . . . . . 2 . . 5 . . . . Impact Corruptions 18 | . . . . . . . . 8 . . . . 7 3 . . . . . . . . . . . . . . . . . . Robots Melted 4 | . . . . . . . . . . . . . . . . 1 1 . 2 . . . . . . . . . . . . . Combat Hostiles 3 | . . . . . . . . . . . . . . . . 1 1 . 1 . . . . . . . . . . . . . Parts Melted 42 | . . . . 1 2 . 3 2 . 5 . . 5 . . 11 3 . 3 . 2 . 1 3 1 . . . . . . . Heat Transferred 22396 | . . . . . 2183 37 981 1325 1475 1200 . 550 1741 512 74 4623 1850 3067 494 . 333 92 222 555 518 111 . . . . . 453 Parts Sabotaged . | . . . . . . . . . . . . . . . . . . . . . . . . . . . . . . . . . Parts Stolen . | . . . . . . . . . . . . . . . . . . . . . . . . . . . . . . . . . Parts Stripped . | . . . . . . . . . . . . . . . . . . . . . . . . . . . . . . . . . Power Chain Reactions 3 | . . . . . . . . 1 . 2 . . . . . . . . . . . . . . . . . . . . . . Alert | -11 -10 -10 -10 -9 -8 -8 -8 -8 -8 -8 -7 -7 -6 -6 -6 -6 -5 -5 -5 -5 -5 -5 -4 -4 -4 -4 -4 -4 -3 -2 -1 -1 ------- Run | Yrd Mat Min Exi Min Mat Gar Mat Gar Mat Gar Fac DSF Fac Gar Fac Gar Fac Was Fac Upp Upp War Pro Fac Ext Cet Arc Hub Res Res Acc Com Maximum Alert Level 5 | . . . . 1 3 4 3 4 3 4 3 3 2 5 3 5 4 2 . . . . . . . 2 1 1 . 1 1 1 Low Security (%) 52 | 100 100 100 . 89 68 . . . . . . . 6 . . . . 83 100 . . . . 100 100 85 94 99 100 87 84 54 Level 1 7 | . . . . 10 14 . . . . . . . 27 . . . . 14 . . . . . . . 7 5 . . 12 15 45 Level 2 18 | . . . . . 12 13 61 26 71 31 36 85 65 28 . 13 . 1 . . . . . . . 7 . . . . . . Level 3 13 | . . . . . 4 51 38 41 28 38 63 14 . 18 100 42 32 . . . . . . . . . . . . . . . Level 4 8 | . . . . . . 34 . 31 . 29 . . . 52 . 24 67 . . . . . . . . . . . . . . . Level 5 . | . . . . . . . . . . . . . . . . 19 . . . . . . . . . . . . . . . . High Security . | . . . . . . . . . . . . . . . . . . . . . . . . . . . . . . . . . Max Security . | . . . . . . . . . . . . . . . . . . . . . . . . . . . . . . . . . Sterilizations 1 | . . . . . . . . . . . . 1 . . . . . . . . . . . . . . . . . . . . Peak Influence 1941 | 5 70 68 . 268 823 1364 1028 1508 762 1400 735 713 667 1603 841 1941 1206 413 55 . . . . 62 133 425 289 318 181 268 244 280 Initial 1010 | . 3 . . . 8 533 664 450 735 497 735 472 373 456 841 546 1010 413 . . . . . . 20 44 149 . 166 54 . 150 Average 384 | . 28 6 . 81 167 948 724 937 643 913 707 538 490 1067 804 1140 1110 70 10 . . . . 16 25 119 25 52 81 103 82 184 Influence Increases 16178 | 5 170 84 . 472 1278 831 1295 1158 441 913 . 251 977 1237 40 1540 514 138 266 105 213 250 55 265 313 845 211 729 423 360 414 385 Destroy 0b10 Robot/C 7040 | . 80 . . 280 740 20 720 620 280 460 . 160 220 560 20 900 200 . 60 100 180 160 40 100 160 400 80 140 120 60 120 60 Destroy 0b10 Robot/NC 690 | 5 20 . . 25 90 . 90 10 50 . . . 55 . . 20 25 . 35 5 . . 5 15 30 10 25 20 85 20 40 10 Destroy Leader 1138 | . 14 . . 50 196 . 174 30 78 40 . 30 82 70 10 60 60 . 26 . 10 . 10 30 32 30 . 30 32 14 10 20 Allied During Kill 826 | . . . . 52 7 5 105 28 . . . . . 61 . 53 53 . . . 8 . . . 19 356 74 5 . . . . Trap Triggered on 0b10 110 | . . . . . . . . . . . . . . . . . . . . . . . . 20 . . . . . . . 90 Successful Hack 620 | . 26 . . 6 29 6 31 . 6 28 . . 65 12 4 . . . 64 . . . . 42 8 7 . 20 87 21 70 88 Select Force Hacks 160 | . . . . . . . . . . . . . . . . . 30 . 30 . . . . . . . . 100 . . . . Disable Machine 900 | . . 60 . 30 . 15 75 60 15 15 . 15 285 30 . 15 60 . 15 . . . . . . . 30 90 30 . 30 30 Anti-Garrison Action 2400 | . . . . . . 750 . 350 . 300 . . 150 300 . 350 . . . . . . . . . . . . . 200 . . Destroy Structure 1349 | . . 24 . 14 51 35 55 45 12 55 . 16 105 69 6 97 86 138 36 . . . . 28 4 42 2 234 54 15 84 42 Partial Spotted 105 | . 15 . . . . . . . . . . . . . . . . . . . . . . . . . . 45 . 15 . 30 Lose Combat Pursuer 840 | . 15 . . 15 165 . 45 15 . 15 . 30 15 135 . 45 . . . . 15 90 . 30 60 . . 45 15 15 60 15 Influence Decreases 16105 | . 175 84 . 450 479 288 1966 343 1183 279 725 213 1038 286 862 395 1258 1320 264 67 253 136 169 223 274 553 584 411 644 457 178 548 Entered New Map 7063 | . 2 . . . 14 288 700 243 773 269 665 203 340 196 762 235 916 769 . 2 8 . 114 . 22 37 224 . 152 43 . 86 Time Decay 7359 | . 163 84 . 450 406 . 626 . 410 . 60 . 678 . 100 . 302 551 264 65 195 136 55 223 203 430 360 172 482 404 178 362 Lost Part 480 | . 10 . . . 20 . 110 40 . 10 . 10 . 50 . 60 . . . . 10 . . . 10 . . 40 10 10 . 90 Lost Ally 579 | . . . . . 39 . 80 60 . . . . 20 40 . 100 40 . . . 40 . . . 4 86 . 60 . . . 10 Purge Threat 624 | . . . . . . . 450 . . . . . . . . . . . . . . . . . 35 . . 139 . . . . Squads Dispatched 85 | . . . . 2 10 . 8 . 3 . . 2 12 . 3 . 6 . 4 . 1 . . 3 1 . . 8 7 1 5 9 Investigation 26 | . . . . 2 4 . 1 . . . . . 3 . 2 . 1 . 2 . . . . . . . . 3 3 1 2 2 Extermination 12 | . . . . . . . . . . . . . 2 . . . 1 . 2 . . . . 2 . . . 1 . . 1 3 Reinforcement 32 | . . . . . 3 . 4 . 2 . . 2 4 . . . 1 . . . . . . 1 1 . . 4 4 . 2 4 Assault 9 | . . . . . 1 . 3 . . . . . 3 . . . 1 . . . 1 . . . . . . . . . . . Garrison 6 | . . . . . 2 . . . 1 . . . . . 1 . 2 . . . . . . . . . . . . . . . Intercept . | . . . . . . . . . . . . . . . . . . . . . . . . . . . . . . . . . Searches Triggered . | . . . . . . . . . . . . . . . . . . . . . . . . . . . . . . . . . Construction Impeded 4 | . . . . . . . 1 . . . . . 2 . . . . . . . . . . . . . . . 1 . . . Haulers Reinforced 1 | . . . . . . . . . . . . . 1 . . . . . . . . . . . . . . . . . . . Active Scanning Responses . | . . . . . . . . . . . . . . . . . . . . . . . . . . . . . . . . . Cargo Convoy Interrupts 1 | . . . . . . . . . . . . . 1 . . . . . . . . . . . . . . . . . . . Stealth | -11 -10 -10 -10 -9 -8 -8 -8 -8 -8 -8 -7 -7 -6 -6 -6 -6 -5 -5 -5 -5 -5 -5 -4 -4 -4 -4 -4 -4 -3 -2 -1 -1 --------- Run | Yrd Mat Min Exi Min Mat Gar Mat Gar Mat Gar Fac DSF Fac Gar Fac Gar Fac Was Fac Upp Upp War Pro Fac Ext Cet Arc Hub Res Res Acc Com Distress Signals 47 | . 2 . . . 4 . 3 2 . . . . 2 . . . . . . . . 1 . 2 1 1 . 4 6 5 2 12 Communications Jammed . | . . . . . . . . . . . . . . . . . . . . . . . . . . . . . . . . . Distress Signals . | . . . . . . . . . . . . . . . . . . . . . . . . . . . . . . . . . Times Spotted 621 | . 7 8 . 15 58 1 49 33 15 21 . 16 20 30 3 45 10 6 11 5 11 84 2 11 18 24 10 26 23 10 15 34 Peak Tracking Total 20 | . 4 3 . 4 5 1 7 6 4 5 . 6 4 8 2 6 3 3 2 5 5 15 1 3 7 8 1 20 10 5 5 8 Tactical Retreats 31 | . 1 . . 1 4 . 3 1 . 1 . 1 1 3 . 2 . . . . 1 1 . 1 2 . . 1 1 2 3 1 Traps | -11 -10 -10 -10 -9 -8 -8 -8 -8 -8 -8 -7 -7 -6 -6 -6 -6 -5 -5 -5 -5 -5 -5 -4 -4 -4 -4 -4 -4 -3 -2 -1 -1 ------- Run | Yrd Mat Min Exi Min Mat Gar Mat Gar Mat Gar Fac DSF Fac Gar Fac Gar Fac Was Fac Upp Upp War Pro Fac Ext Cet Arc Hub Res Res Acc Com Traps Triggered 34 | . 2 . . . 3 5 1 3 1 1 . . 4 2 2 5 1 . 1 . . . . . . . . . 2 . 1 . Indirectly 1 | . . . . . . . . 1 . . . . . . . . . . . . . . . . . . . . . . . . Trap Hack Attempts 97 | . . . . 45 . . . . . . . . 20 . . . . . . . . . . 27 5 . . . . . . . Triggered . | . . . . . . . . . . . . . . . . . . . . . . . . . . . . . . . . . Disarmed 1 | . . . . . . . . . . . . . 1 . . . . . . . . . . . . . . . . . . . Reprogrammed 14 | . . . . 4 . . . . . . . . 3 . . . . . . . . . . 6 1 . . . . . . . Reused 16 | . . . . . . . . . . . . . . . . . . 4 . . 1 . . 2 . . . . . . . 9 Traps Extracted 18 | . . . . 4 . . . . . . . . 2 . . . . . . . 4 2 . 6 . . . . . . . . Installed 24 | . . . . . . . . . . . . . . . . 2 . 4 . . 3 . . 3 . . . . . . . 12 Triggered 12 | . . . . . . . . . . . . . . . . . . . . . 1 . . 2 . . . . . . . 9 Most Traps Carried 12 | . . . . 4 4 4 4 7 7 7 7 7 9 9 9 9 7 7 3 6 7 9 9 12 12 12 12 12 12 12 12 12 Machines | -11 -10 -10 -10 -9 -8 -8 -8 -8 -8 -8 -7 -7 -6 -6 -6 -6 -5 -5 -5 -5 -5 -5 -4 -4 -4 -4 -4 -4 -3 -2 -1 -1 ---------- Run | Yrd Mat Min Exi Min Mat Gar Mat Gar Mat Gar Fac DSF Fac Gar Fac Gar Fac Was Fac Upp Upp War Pro Fac Ext Cet Arc Hub Res Res Acc Com Machines Disabled 92 | . 1 4 . 2 . 5 5 7 1 6 . 1 20 7 . 8 4 . 1 . 1 3 2 . . . 2 6 2 . 2 2 Max in Single Turn 10 | . 1 2 . 1 . 1 1 1 1 2 . 1 10 1 . 1 1 . 1 . 1 1 1 . . . . 6 1 . 1 1 Garrison Access 8 | . . . . . . . . . . . . . 1 . . . . . . . . . . 1 . . . . 2 3 1 . Garrison Relay 19 | . . . . . . 4 . 3 . 3 . . . 4 . 5 . . . . . . . . . . . . . . . . Phase Generator 1 | . . . . . . . . . . 1 . . . . . . . . . . . . . . . . . . . . . . Network Hub 3 | . . . . . . . . . . . . . . . . . . . . . . . . . . . . 3 . . . . Energy Cycler 1 | . . . . . . . . . . . . . . . . . . . . . . . . . . . . . . . 1 . Machines Repaired . | . . . . . . . . . . . . . . . . . . . . . . . . . . . . . . . . . Machines Dismantled 5 | . . . . . . 2 . 3 . . . . . . . . . . . . . . . . . . . . . . . . Machines Sabotaged 2 | . . . . . . . . . . . . . . . . . . . . . . . . . . . . 2 . . . . Overloaded Fab Kills . | . . . . . . . . . . . . . . . . . . . . . . . . . . . . . . . . . Hacking | -11 -10 -10 -10 -9 -8 -8 -8 -8 -8 -8 -7 -7 -6 -6 -6 -6 -5 -5 -5 -5 -5 -5 -4 -4 -4 -4 -4 -4 -3 -2 -1 -1 --------- Run | Yrd Mat Min Exi Min Mat Gar Mat Gar Mat Gar Fac DSF Fac Gar Fac Gar Fac Was Fac Upp Upp War Pro Fac Ext Cet Arc Hub Res Res Acc Com Machines Accessed 135 | . 5 . 2 3 13 4 12 1 3 2 1 . 14 1 3 2 2 . 10 1 . 3 . 11 9 1 . 4 14 3 6 5 Terminals 81 | . 4 . . 1 8 4 8 1 1 2 1 . 6 1 2 2 1 . 6 . . . . 4 9 1 . 3 5 1 5 5 Fabricators 5 | . . . . . . . . . . . . . 2 . . . . . 1 . . . . . . . . . 2 . . . Repair Stations 13 | . 1 . . . 2 . 1 . 1 . . . 2 . . . . . 2 . . . . 4 . . . . . . . . Recycling Units 5 | . . . . . . . . . . . . . . . . . 1 . 1 . . . . . . . . . 3 . . . Scanalyzers 10 | . . . . . 2 . 2 . . . . . 2 . . . . . . . . . . 2 . . . . 2 . . . Garrison Access 13 | . . . . . 1 . 1 . 1 . . . 2 . 1 . . . . . . . . 1 . . . 1 2 2 1 . Total Hacks 378 | . 14 . 5 5 44 9 37 3 9 3 1 . 41 2 9 6 4 . 30 4 . 13 . 24 17 2 . 11 41 8 20 16 Successful 217 | . 7 . 5 3 27 1 20 1 4 2 1 . 22 1 7 2 3 . 17 4 . 13 . 15 11 1 . 9 24 3 8 6 Failed 158 | . 7 . . 2 16 8 16 2 5 1 . . 19 1 2 4 1 . 13 . . . . 9 6 1 . 2 16 5 12 10 Catastrophic 28 | . 3 . . 2 2 . 3 . 1 . . . 3 . . 1 1 . 2 . . . . 1 . . . 1 . 2 3 3 Database Lockouts 3 | . . . . . 1 . 1 . . . . . . . . . . . . . . . . . . . . . 1 . . . Manual 107 | . 9 . 1 3 8 . 11 . 5 . . . 9 . 5 1 1 . 21 . . . . 1 3 1 . 6 7 2 4 9 Terminals 216 | . 12 . . 3 16 9 22 3 3 3 1 . 17 2 7 6 1 . 20 . . . . 7 17 2 . 10 19 1 19 16 Fabricators 16 | . . . . . . . . . . . . . 7 . . . . . 4 . . . . . . . . . 5 . . . Repair Stations 37 | . 2 . . . 9 . 3 . 2 . . . 5 . . . . . 5 . . . . 11 . . . . . . . . Recycling Units 9 | . . . . . . . . . . . . . . . . . 3 . 1 . . . . . . . . . 5 . . . Scanalyzers 51 | . . . . . 18 . 10 . . . . . 8 . . . . . . . . . . 5 . . . . 10 . . . Garrison Access 25 | . . . . . 1 . 2 . 4 . . . 4 . 2 . . . . . . . . 1 . . . 1 2 7 1 . Terminal Hacks 97 | . 5 . 5 3 4 1 8 1 1 2 1 . 4 1 3 2 . . 6 4 . 13 . 2 9 1 . 5 6 1 5 4 Record 8 | . . . 4 . . . . . . . . . . . . . . . . 4 . . . . . . . . . . . . Part Schematic 4 | . 2 . . . . . . . . . . . . . 1 . . . . . . . . . . . . . 1 . . . Robot Schematic 1 | . . . . . . . . . . . . . . . . . . . 1 . . . . . . . . . . . . . Robot Analysis 5 | . 2 . . 1 1 . . . . . . . . . . . . . . . . . . . . . . . . . . 1 Prototype ID Bank 13 | . 1 . . . . . . . . . . . . . . . . . . . . 12 . . . . . . . . . . Open Door 13 | . . . . 2 . 1 . . . . . . . . . 1 . . . . . 1 . . 5 1 . . . . 1 1 Open DSF 2 | . . . . . . . . . . . 1 . . . . . . . . . . . . . . . . . 1 . . . Level Access Points 3 | . . . . . . . . . . . . . . . . . . . . . . . . . . . . 1 1 1 . . Branch Access Points 4 | . . . . . . . . . . . . . . . . . . . 1 . . . . 1 . . . . 1 . 1 . Emergency Access Points 3 | . . . . . . . . . . 1 . . . 1 . 1 . . . . . . . . . . . . . . . . Machine Index 2 | . . . . . . . . . . . . . . . . . . . . . . . . . . . . . . . 1 1 Terminal Index 3 | . . . . . . . . . 1 . . . . . 1 . . . . . . . . . . . . . 1 . . . Repair Station Index 1 | . . . . . . . . . . . . . . . . . . . 1 . . . . . . . . . . . . . Scanalyzer Index 1 | . . . . . . . . . . . . . . . . . . . 1 . . . . . . . . . . . . . Garrison Index 2 | . . . . . . . 1 . . . . . 1 . . . . . . . . . . . . . . . . . . . Unreport Threat 6 | . . . . . . . 3 . . . . . . . . . . . . . . . . . 1 . . 2 . . . . Locate Traps 8 | . . . . . 1 . 1 . . . . . 1 . 1 . . . . . . . . 1 1 . . 1 . . . 1 Recall Investigation 1 | . . . . . . . . . . . . . . . . . . . 1 . . . . . . . . . . . . . Recall Reinforcements 1 | . . . . . . . . . . . . . . . . . . . . . . . . . 1 . . . . . . . Registered Components 3 | . . . . . 1 . . . . . . . 1 . . . . . . . . . . . 1 . . . . . . . Registered Prototypes 2 | . . . . . . . . . . . . . . . . . . . 1 . . . . . . . . . . . 1 . Zone Layout 8 | . . . . . 1 . 3 . . . . . 1 . . . . . . . . . . . . . . 1 1 . 1 . Garrison Registry 1 | . . . . . . . . 1 . . . . . . . . . . . . . . . . . . . . . . . . Patrol Navigation 1 | . . . . . . . . . . 1 . . . . . . . . . . . . . . . . . . . . . . Proto ID Catalog 1 | . . . 1 . . . . . . . . . . . . . . . . . . . . . . . . . . . . . Fabricator Hacks 10 | . . . . . . . . . . . . . 5 . . . . . 2 . . . . . . . . . 3 . . . Network Status 1 | . . . . . . . . . . . . . 1 . . . . . . . . . . . . . . . . . . . Load Schematic 5 | . . . . . . . . . . . . . 2 . . . . . 1 . . . . . . . . . 2 . . . Build 4 | . . . . . . . . . . . . . 2 . . . . . 1 . . . . . . . . . 1 . . . Repair Station Hacks 25 | . 2 . . . 5 . 2 . 2 . . . 3 . . . . . 4 . . . . 7 . . . . . . . . Scan Component 15 | . 1 . . . 3 . 1 . 1 . . . 2 . . . . . 2 . . . . 5 . . . . . . . . Repair 10 | . 1 . . . 2 . 1 . 1 . . . 1 . . . . . 2 . . . . 2 . . . . . . . . Recycling Unit Hacks 5 | . . . . . . . . . . . . . . . . . 2 . . . . . . . . . . . 3 . . . Report Inventory 1 | . . . . . . . . . . . . . . . . . 1 . . . . . . . . . . . . . . . Retrieve Components 4 | . . . . . . . . . . . . . . . . . 1 . . . . . . . . . . . 3 . . . Scanalyzer 37 | . . . . . 15 . 7 . . . . . 5 . . . . . . . . . . 4 . . . . 6 . . . Insert Component 13 | . . . . . 5 . 2 . . . . . 2 . . . . . . . . . . 2 . . . . 2 . . . Analyze 16 | . . . . . 9 . 2 . . . . . 3 . . . . . . . . . . 1 . . . . 1 . . . Retrieve Study 8 | . . . . . 1 . 3 . . . . . . . . . . . . . . . . 1 . . . . 3 . . . Garrison Access Hacks 10 | . . . . . 1 . 1 . 1 . . . 1 . 1 . . . . . . . . 1 . . . . 2 1 1 . Unlock Access 5 | . . . . . 1 . 1 . 1 . . . 1 . 1 . . . . . . . . . . . . . . . . . Seal Access 5 | . . . . . . . . . . . . . . . . . . . . . . . . 1 . . . . 2 1 1 . Unauthorized Hacks 33 | . . . . . 2 . 2 . . . . . 4 . 3 . 1 . 5 . . . . 1 2 . . 4 4 1 2 2 Terminals 25 | . . . . . 2 . 2 . . . . . 2 . 2 . . . 3 . . . . 1 2 . . 3 4 . 2 2 Track 3 | . . . . . . . . . . . . . . . . . . . 1 . . . . . . . . . 1 . . 1 Assimilate 3 | . . . . . . . . . . . . . . . . . . . 1 . . . . 1 . . . . . . . 1 Botnet 15 | . . . . . 2 . 2 . . . . . 2 . 1 . . . 1 . . . . . 2 . . 1 3 . 1 . Skim 1 | . . . . . . . . . . . . . . . . . . . . . . . . . . . . . . . 1 . Sabotage 2 | . . . . . . . . . . . . . . . . . . . . . . . . . . . . 2 . . . . Search 1 | . . . . . . . . . . . . . . . 1 . . . . . . . . . . . . . . . . . Fabricators 3 | . . . . . . . . . . . . . 2 . . . . . 1 . . . . . . . . . . . . . Prioritize 1 | . . . . . . . . . . . . . 1 . . . . . . . . . . . . . . . . . . . Haulers 2 | . . . . . . . . . . . . . 1 . . . . . 1 . . . . . . . . . . . . . Repair Stations . | . . . . . . . . . . . . . . . . . . . . . . . . . . . . . . . . . Recycling Units 2 | . . . . . . . . . . . . . . . . . 1 . 1 . . . . . . . . . . . . . Tunnel 2 | . . . . . . . . . . . . . . . . . 1 . 1 . . . . . . . . . . . . . Scanalyzers . | . . . . . . . . . . . . . . . . . . . . . . . . . . . . . . . . . Garrison Access 3 | . . . . . . . . . . . . . . . 1 . . . . . . . . . . . . 1 . 1 . . Reprogram 2 | . . . . . . . . . . . . . . . 1 . . . . . . . . . . . . 1 . . . . Jam 1 | . . . . . . . . . . . . . . . . . . . . . . . . . . . . . . 1 . . Data Cores Recovered 6 | . . . . . . . . . . . . . 1 . . . . . 2 . . . . 1 . . . . . . 2 . Used 3 | . . . . . . . . . . . . . 1 . . . . . 1 . . . . 1 . . . . . . . . Hacking Detections 101 | . 5 . . 1 12 3 12 1 3 1 . . 12 1 2 2 2 . 8 . . . . 7 6 1 . 3 8 3 4 4 Full Trace Events 11 | . . . . 1 1 3 1 . 1 . . . 2 . . . . . 1 . . . . . . . . . 1 . . . Feedback Events . | . . . . . . . . . . . . . . . . . . . . . . . . . . . . . . . . . Feedback Blocked . | . . . . . . . . . . . . . . . . . . . . . . . . . . . . . . . . . Robot Schematics Acquired 1 | . . . . . . . . . . . . . . . . . . . 1 . . . . . . . . . . . . . Robots Built 1 | . . . . . . . . . . . . . . . . . . . 1 . . . . . . . . . . . . . Authchips 1 | . . . . . . . . . . . . . . . . . . . 1 . . . . . . . . . . . . . Time 40 | . . . . . . . . . . . . . . . . . . . 40 . . . . . . . . . . . . . Total Robot Build Rating 1 | . . . . . . . . . . . . . . . . . . . 1 . . . . . . . . . . . . . Part Schematics Acquired 14 | . 2 . . . 5 . 2 . . . . . 2 . 1 . . . . . . . . . . . . . 2 . . . Parts Built 4 | . . . . . . . . . . . . . 2 . . . . . . . . . . . . . . . 2 . . . Authchips 2 | . . . . . . . . . . . . . 2 . . . . . . . . . . . . . . . . . . . Time 222 | . . . . . . . . . . . . . 153 . . . . . . . . . . . . . . . 69 . . . Total Part Build Rating 26 | . . . . . . . . . . . . . 8 . . . . . . . . . . . . . . . 18 . . . Part Studies Acquired 8 | . . . . . 1 . 3 . . . . . . . . . . . . . . . . 1 . . . . 3 . . . Parts Repaired 10 | . 1 . . . 2 . 1 . 1 . . . 1 . . . . . 2 . . . . 2 . . . . . . . . Time 586 | . 26 . . . 180 . 32 . 44 . . . 50 . . . . . 163 . . . . 91 . . . . . . . . Parts Recycled . | . . . . . . . . . . . . . . . . . . . . . . . . . . . . . . . . . Recycled Matter . | . . . . . . . . . . . . . . . . . . . . . . . . . . . . . . . . . Retrieved Matter . | . . . . . . . . . . . . . . . . . . . . . . . . . . . . . . . . . Retrieved Components 23 | . . . . . . . . . . . . . . . . . 9 . . . . . . . . . . . 14 . . . Parts Scanalyzed 11 | . . . . . 5 . 2 . . . . . 2 . . . . . . . . . . 1 . . . . 1 . . . Part Schematics Acquired 10 | . . . . . 5 . 2 . . . . . 2 . . . . . . . . . . . . . . . 1 . . . Parts Damaged 1 | . . . . . 1 . . . . . . . . . . . . . . . . . . . . . . . . . . . Bothacking | -11 -10 -10 -10 -9 -8 -8 -8 -8 -8 -8 -7 -7 -6 -6 -6 -6 -5 -5 -5 -5 -5 -5 -4 -4 -4 -4 -4 -4 -3 -2 -1 -1 ------------ Run | Yrd Mat Min Exi Min Mat Gar Mat Gar Mat Gar Fac DSF Fac Gar Fac Gar Fac Was Fac Upp Upp War Pro Fac Ext Cet Arc Hub Res Res Acc Com Used RIF Installer . | . . . . . . . . . . . . . . . . . . . . . . . . . . . . . . . . . Robots Hacked 15 | . . . 4 . . . . . . . . . 5 . . . . . 1 . . . . . 2 2 . . 1 . . . Non-combat 10 | . . . 3 . . . . . . . . . 5 . . . . . 1 . . . . . 1 . . . . . . . Combat 5 | . . . 1 . . . . . . . . . . . . . . . . . . . . . 1 2 . . 1 . . . Robot Hacks Applied 16 | . . . 4 . . . . . . . . . 6 . . . . . 1 . . . . . 2 2 . . 1 . . . parse_system 12 | . . . 4 . . . . . . . . . 3 . . . . . . . . . . . 2 2 . . 1 . . . find_chute 2 | . . . . . . . . . . . . . 2 . . . . . . . . . . . . . . . . . . . find_fabricator 1 | . . . . . . . . . . . . . . . . . . . 1 . . . . . . . . . . . . . find_recycling 1 | . . . . . . . . . . . . . 1 . . . . . . . . . . . . . . . . . . . Relay Couplers Released 92 | . . . . . . 20 . 11 . 15 . . 1 17 . 22 . . . . . . . . . . . 4 . 2 . . Machine Destruction 85 | . . . . . . 17 . 11 . 15 . . 1 17 . 22 . . . . . . . . . . . . . 2 . . Programmers 7 | . . . . . . 3 . . . . . . . . . . . . . . . . . . . . . 4 . . . . Fabnet Peak Effective % . | . . . . . . . . . . . . . . . . . . . . . . . . . . . . . . . . . Robots Rewired 22 | . . . . . . 6 . 3 . . . . . 1 . 3 . . . 1 1 . . . 7 . . . . . . . Allies Hacked 1 | . . . . . . 1 . . . . . . . . . . . . . . . . . . . . . . . . . . Hacks Repelled . | . . . . . . . . . . . . . . . . . . . . . . . . . . . . . . . . . Allies | -11 -10 -10 -10 -9 -8 -8 -8 -8 -8 -8 -7 -7 -6 -6 -6 -6 -5 -5 -5 -5 -5 -5 -4 -4 -4 -4 -4 -4 -3 -2 -1 -1 -------- Run | Yrd Mat Min Exi Min Mat Gar Mat Gar Mat Gar Fac DSF Fac Gar Fac Gar Fac Was Fac Upp Upp War Pro Fac Ext Cet Arc Hub Res Res Acc Com Total Allies 47 | . . 5 . . . 6 . 3 . . . . . 2 2 7 . . 1 1 1 . . 1 11 5 . 1 . . . 1 Largest Group 9 | . . 5 5 3 3 6 6 3 . . . . . 1 2 3 2 . 1 1 2 . . 1 8 9 3 3 . . . 1 Highest-Rated Group 753 | . . 85 85 40 40 157 157 120 . . . . . 142 82 175 175 . 14 49 78 . . 26 465 753 288 288 . . . 26 Highest-Rated Ally 159 | . . 31 31 16 16 34 34 40 . . . . . 142 41 95 95 . 14 49 49 . . 26 159 159 96 96 . . . 26 Initial Warlord ECA Mod 47 | . . . . . . . 8 8 17 17 22 22 31 31 39 39 47 47 47 47 47 47 46 46 46 46 46 46 45 44 43 43 Total Orders 25 | . . . . 2 . . . . . . . . 4 2 . . . . 3 . 2 . . 1 . 5 3 3 . . . . STAY 11 | . . . . 1 . . . . . . . . . 1 . . . . 1 . 1 . . 1 . 3 . 3 . . . . ROAM 1 | . . . . . . . . . . . . . . . . . . . . . . . . . . . 1 . . . . . FOLLOW 7 | . . . . 1 . . . . . . . . . 1 . . . . 1 . 1 . . . . 2 1 . . . . . AID 2 | . . . . . . . . . . . . . . . . . . . 1 . . . . . . . 1 . . . . . EXPLORE 3 | . . . . . . . . . . . . . 3 . . . . . . . . . . . . . . . . . . . RETURN 1 | . . . . . . . . . . . . . 1 . . . . . . . . . . . . . . . . . . . Ally Attacks 398 | . . 2 . 24 14 8 47 16 . . . . . 42 3 50 32 . . . 9 . . . 20 88 31 12 . . . . Total Damage 10839 | . . 21 . 217 157 115 860 325 . . . . . 1309 58 1164 1284 . . . 284 . . . 622 2602 1206 615 . . . . Kills 67 | . . . . 5 2 . 10 2 . . . . . 9 . 5 4 . . . 1 . . . 6 16 3 4 . . . . Allies Corrupted . | . . . . . . . . . . . . . . . . . . . . . . . . . . . . . . . . . Allies Melted 1 | . . . . . . . . . . . . . . . . . . . . . . . . . 1 . . . . . . . Intel | -11 -10 -10 -10 -9 -8 -8 -8 -8 -8 -8 -7 -7 -6 -6 -6 -6 -5 -5 -5 -5 -5 -5 -4 -4 -4 -4 -4 -4 -3 -2 -1 -1 ------- Run | Yrd Mat Min Exi Min Mat Gar Mat Gar Mat Gar Fac DSF Fac Gar Fac Gar Fac Was Fac Upp Upp War Pro Fac Ext Cet Arc Hub Res Res Acc Com Active Infowar (turns) 23843 | . . . . 1 . . . . . . . . 214 1203 213 1451 673 2724 1174 1138 1408 1301 890 800 914 1204 4454 487 1255 1063 415 861 Optics 22101 | . . . . . . . . . . . . . 212 1203 213 1451 673 2724 1174 1138 685 285 890 800 914 1204 4454 487 1255 1063 415 861 Sensors 4625 | . . . . 1 . . . . . . . . . . . . . . . 902 1335 1016 767 533 . . . . . 71 . . Traps 2 | . . . . . . . . . . . . . 2 . . . . . . . . . . . . . . . . . . . Cloaking 16 | . . . . . . . . . . . . . . . . . . . . . . 16 . . . . . . . . . . Robot Analysis Total 5 | . 2 . . 1 1 . . . . . . . . . . . . . . . . . . . . . . . . . . 1 Derelict Logs Recovered 7 | . . 2 . 2 . . . . . . . . . . . . . . . 1 2 . . . . . . . . . . . Drone Launches 2 | . . . . . . . . . . . . . 2 . . . . . . . . . . . . . . . . . . . Drone Recoveries . | . . . . . . . . . . . . . . . . . . . . . . . . . . . . . . . . . Exploration | -11 -10 -10 -10 -9 -8 -8 -8 -8 -8 -8 -7 -7 -6 -6 -6 -6 -5 -5 -5 -5 -5 -5 -4 -4 -4 -4 -4 -4 -3 -2 -1 -1 ------------- Run | Yrd Mat Min Exi Min Mat Gar Mat Gar Mat Gar Fac DSF Fac Gar Fac Gar Fac Was Fac Upp Upp War Pro Fac Ext Cet Arc Hub Res Res Acc Com Turns Passed 40576 | 59 436 877 319 1410 2532 1244 2143 2081 998 1381 126 439 2674 1203 213 1451 673 2724 1174 1138 1549 1389 890 800 914 1204 4454 487 1255 1063 415 861 Spaces Moved 25134 | 46 293 412 313 729 1198 711 838 711 355 458 58 164 1487 615 163 745 492 1421 766 815 900 962 963 860 889 1048 406 604 1531 2257 734 1190 Core 274 | 6 . . . . . . . . . . . . . . . . . . . . . . . . . . 268 . . . . . Treads 3772 | . . . . . 455 711 838 711 53 458 58 164 324 . . . . . . . . . . . . . . . . . . . Legs 8436 | . . . . . . . . . . . . . 877 615 163 745 492 1421 766 815 900 962 680 . . . . . . . . . Wheels 3118 | 40 293 412 313 729 743 . . . 302 . . . 286 . . . . . . . . . . . . . . . . . . . Hover 9534 | . . . . . . . . . . . . . . . . . . . . . . . 283 860 889 1048 138 604 1531 2257 734 1190 Flight . | . . . . . . . . . . . . . . . . . . . . . . . . . . . . . . . . . Fastest Speed 22 | 50 95 95 95 125 140 160 160 243 145 240 160 160 105 105 105 105 110 106 106 110 117 85 46 22 31 28 37 37 29 36 36 36 Average Speed 119 | 93 95 95 96 135 156 160 195 244 173 240 204 215 138 127 105 122 110 171 106 114 117 106 82 43 50 40 1042 37 45 36 36 42 Slowest Speed 1550 | 100 100 95 125 140 170 160 250 246 243 320 240 242 242 180 105 180 195 210 110 202 117 199 98 102 111 113 1550 41 117 126 36 160 Overloaded Moves 64 | . . . . . . . . . . . . . . . . . . . . . . 34 . 3 18 6 . 3 . . . . Propulsion Burnouts . | . . . . . . . . . . . . . . . . . . . . . . . . . . . . . . . . . Robots Hopped 14 | . . . . . . . . . . . . . . . . . . . . . . . . . . 13 . . . 1 . . Potential Cave-ins . | . . . . . . . . . . . . . . . . . . . . . . . . . . . . . . . . . Cave-ins Triggered . | . . . . . . . . . . . . . . . . . . . . . . . . . . . . . . . . . Exploration Rate (%) 58 | 3 62 96 70 95 91 96 76 68 26 50 2 81 42 68 7 82 15 100 22 80 85 91 70 21 85 74 83 38 40 65 19 35 Regions Visited 32 Branch Regions 12 Pre-discovered Areas 8 | . . 2 1 1 . . . . . . . . . . . . 1 . 1 1 1 . . . . . . . . . . . Known Exits Taken 13 | . . . . . 1 . 1 . 1 . 1 . 1 . 1 . . . 1 . 1 . . 1 . . . 1 1 1 1 . Unknown Exits Taken 11 | 1 1 1 1 1 . . . . . . . . . . . . . . . 1 . 1 1 . 1 1 1 . . . . . Scrap Searched 14 | . . 3 . 2 . . . . . . . . . . . . . . . 4 2 . 3 . . . . . . . . . Spaces Dug 214 | . . 6 . 6 2 . 14 . . . . . 54 3 3 5 . 58 10 . 10 . 4 7 . . . 7 18 . 1 6 Terrain Destroyed 877 | . . 27 . 17 49 . 20 . 18 96 . 18 112 31 6 45 5 79 22 5 20 1 14 18 4 1 . 177 29 11 31 21 Melee 36 | . . . . . 2 . 8 . . . . . 1 . . 2 . . . . . . . . . . . 7 16 . . . Projectile 303 | . . . . . . . 1 . 18 9 . 2 6 27 6 8 5 79 22 5 20 1 14 18 4 1 . 4 13 11 8 21 AOE 536 | . . 27 . 17 47 . 11 . . 87 . 16 104 4 . 35 . . . . . . . . . . . 166 . . 22 . Terrain Rammed . | . . . . . . . . . . . . . . . . . . . . . . . . . . . . . . . . . Walls Destroyed . | . . . . . . . . . . . . . . . . . . . . . . . . . . . . . . . . . Machines Disabled . | . . . . . . . . . . . . . . . . . . . . . . . . . . . . . . . . . Actions | -11 -10 -10 -10 -9 -8 -8 -8 -8 -8 -8 -7 -7 -6 -6 -6 -6 -5 -5 -5 -5 -5 -5 -4 -4 -4 -4 -4 -4 -3 -2 -1 -1 --------- Run | Yrd Mat Min Exi Min Mat Gar Mat Gar Mat Gar Fac DSF Fac Gar Fac Gar Fac Was Fac Upp Upp War Pro Fac Ext Cet Arc Hub Res Res Acc Com Total 33330 | 57 403 873 332 1097 1692 778 1182 902 663 660 65 219 2006 898 194 1065 566 1584 1073 979 1354 1287 1020 1236 1278 1781 605 825 1952 2459 810 1435 Wait 5383 | . 61 443 2 257 325 5 182 28 244 153 . 3 323 161 12 102 23 15 203 116 400 222 8 262 277 689 176 184 272 85 38 112 Move 25080 | 45 292 411 312 728 1198 710 838 710 355 457 57 163 1487 614 162 744 492 1420 765 814 899 962 962 859 888 1021 405 603 1530 2254 733 1190 Hop 14 | . . . . . . . . . . . . . . . . . . . . . . . . . . 13 . . . 1 . . Pick Up 246 | 5 10 . 4 9 18 2 16 11 5 1 1 9 19 6 4 10 8 10 14 3 2 16 3 12 6 4 1 1 7 15 . 14 Fast Attach 176 | 6 1 . . 2 7 . 8 7 9 2 1 4 14 3 2 3 2 6 9 2 3 15 2 4 4 5 2 1 19 25 . 8 Attach 124 | . 2 . 2 . 4 . 7 5 . . 2 . 14 8 1 4 2 6 5 . 3 5 5 13 5 3 3 2 6 3 2 12 Detach 34 | . . . . . . . . 1 . . . . 6 1 . . 1 1 1 . 2 1 1 5 1 3 2 1 6 . . 1 Swap 259 | . 3 3 3 16 17 7 13 19 4 7 2 4 17 4 2 32 4 3 11 6 4 11 8 6 7 4 1 1 14 14 4 8 Drop 366 | . 8 1 5 11 17 2 14 13 15 3 2 15 32 8 3 10 5 18 21 3 4 31 10 8 9 11 1 2 21 45 . 18 Fire 1218 | 1 26 15 . 29 104 15 94 57 31 36 . 17 49 76 8 119 28 101 39 33 27 24 21 37 46 25 2 10 43 17 33 55 Melee 125 | . . . 4 . 2 6 8 16 . 1 . . 11 3 . 3 . . . . . . . . 2 3 12 20 30 . . 4 Ram 2 | . . . . . . . . . . . . . . . . . . . . . . . . . 2 . . . . . . . Kick 1 | . . . . . . . . . . . . . . . . . 1 . . . . . . . . . . . . . . . Crush 3 | . . . . . . . 2 . . . . . 1 . . . . . . . . . . . . . . . . . . . Escape Stasis 46 | . . . . . . . . 4 . . . . 13 10 . 10 . . 5 . . . . . . . . . 4 . . . Rewire 116 | . . . . . . 25 . 21 . . . 4 . 4 . 26 . . . 2 7 . . . 26 . . . . . . 1 Trap 121 | . . . . 45 . . . . . . . . 20 . . 2 . 4 . . 3 . . 30 5 . . . . . . 12 Miscellaneous 16 | . . . . . . 6 . 10 . . . . . . . . . . . . . . . . . . . . . . . . Route ------- -11/Scrapyard -10/Materials (discovered 3 exits: [*Mat x2] / [*Min]) -10/Mines (discovered 3 exits: [*Mat x2] / *Exi) -10/Exiles (discovered 2 exits: *Min x2) -9/Mines (discovered 2 exits: *Mat x2) -8/Materials (discovered 3 exits: *Fac x2 / Gar) -8/Garrison (discovered 3 exits: *Mat x3) -8/Materials (discovered 4 exits: *Fac x3 / Gar) -8/Garrison (discovered 4 exits: *Fac x3 / *Mat) -8/Materials -8/Garrison -7/Factory -7/DSF -6/Factory (discovered 3 exits: *Fac x2 / Gar) -6/Garrison (discovered 3 exits: *Fac x2 / *Fac) -6/Factory -6/Garrison (discovered 3 exits: *Fac x3) -5/Factory -5/Waste -5/Factory (discovered 3 exits: *Fac / *Upp x2) -5/Upper Caves -5/Upper Caves (discovered 2 exits: *Fac / *War) -5/Warlord -4/Proximity Caves -4/Factory (discovered 5 exits: *Upp x2 / *Ext x2 / Arm) -4/Extension (discovered 2 exits: *Res / *Cet) -4/Cetus (discovered 2 exits: *Res / [*Arc]) -4/Archives (discovered 3 exits: *Res / *Hub x2) -4/Hub_04(d) (discovered 4 exits: *Res x4) -3/Research (discovered 5 exits: *Res x3 / Qua x2) -2/Research (discovered 4 exits: *Acc x3 / [*Tes]) -1/Access (discovered 2 exits: [*Sur] / *Com) -1/Command Free Derelict Territories History --------- Turn | Location | Event 35 | -11/Scrapyard | Discovered new exit (range 16) 60 | -11/Scrapyard | Entered Materials 205 | -10/Materials | Discovered new exit (range 14) 313 | -10/Materials | Build established: Mutant 315 | -10/Materials | Discovered new exit (range 4) 351 | -10/Materials | Repaired Lgt. Treads 440 | -10/Materials | Discovered new exit (range 12) 496 | -10/Materials | Entered Mines 514 | -10/Mines | Assembled infested the area 519 | -10/Mines | Assisted by a Guerilla fighting off Assembled 1048 | -10/Mines | Discovered new exit (range 16) 1190 | -10/Mines | Assisted by bots powering up and referring to "LRC-V3" 1264 | -10/Mines | Learned location of Zion (-7) 1273 | -10/Mines | Discovered new exit (range 9) 1331 | -10/Mines | Deemed a non-threat by the Exiles lab entrance 1331 | -10/Mines | Discovered new exit (range 5) 1373 | -10/Mines | Entered Exiles 1373 | -10/Exiles | Accompanied by 5 allies 1394 | -10/Exiles | Discovered new exit (range 15) 1403 | -10/Exiles | Led the pair of lost Derelicts to a safe place 1405 | -10/Exiles | Met 8R-AWN 1421 | -10/Exiles | Met EX-HEX 1477 | -10/Exiles | Met EX-DEC 1525 | -10/Exiles | Met EX-BIN 1539 | -10/Exiles | Aligned with FarCom system 1540 | -10/Exiles | Given EX-Vault access code 1563 | -10/Exiles | Opened EX-Vault 1572 | -10/Exiles | Found Potential Leg 1574 | -10/Exiles | Found Potential Leg 1594 | -10/Exiles | Warned to stay clear of 0b10 Research branches 1674 | -10/Exiles | Discovered new exit (range 14) 1692 | -10/Exiles | Left Exiles lab with Potential Leg 1692 | -10/Exiles | Entered Mines 1692 | -9/Mines | Accompanied by 3 allies 1821 | -9/Mines | A weapon hastily lodged in a ceiling crevice suddenly fell to the ground 1832 | -9/Mines | Discovered new exit (range 12) 1873 | -9/Mines | Met a Derelict who couldn't figure out how to use a Trap Extractor 1947 | -9/Mines | Found a Scrap Suit stashed away for nefarious purposes 1949 | -9/Mines | Found Scrap Suit 2690 | -9/Mines | Learned location of 1 exit from Materials 2704 | -9/Mines | Learned Materials emergency access door positions 2866 | -9/Mines | Met a Derelict shopkeep closing up shop 2992 | -9/Mines | Found a damaged Exp. Sensor Array with a note attached 2996 | -9/Mines | Found Prototype Device 2996 | -9/Mines | Identified Exp. Sensor Array 3017 | -9/Mines | Learned location of Storage (-9) 3022 | -9/Mines | Discovered new exit (range 10) 3102 | -9/Mines | Entered Materials 3102 | -8/Materials | Accompanied by 3 allies 3102 | -8/Materials | Evolved 4 slots: Propulsion x1, Utility x2, Weapon x1 3103 | -8/Materials | Identified exit to Factory 3238 | -8/Materials | Lost 3 allies 3484 | -8/Materials | Build established: Tank 3519 | -8/Materials | Central database locked down 4185 | -8/Materials | Build established: Skirmisher 4392 | -8/Materials | Repaired Broken Exp. Sensor Array 4506 | -8/Materials | Repaired Med. Treads 4713 | -8/Materials | Discovered exit to Factory (range 3) 5465 | -8/Materials | Garrison activated, responded to threat 5502 | -8/Materials | First assault squad dispatched 5574 | -8/Materials | Destroyed 9 combat bots 5634 | -8/Materials | Identified exit to Garrison 5634 | -8/Materials | Entered Garrison 5634 | -8/Garrison | Discovered recently destroyed garrison 5808 | -8/Garrison | Garrison Relay disabled 6125 | -8/Garrison | Garrison Relay disabled 6177 | -8/Garrison | Discovered new exit (range 10) 6325 | -8/Garrison | Discovered new exit (range 9) 6383 | -8/Garrison | Garrison Relay disabled 6634 | -8/Garrison | Discovered new exit (range 15) 6746 | -8/Garrison | Garrison Relay disabled 6878 | -8/Garrison | Entered Materials 6878 | -8/Materials | Accompanied by 6 allies 7049 | -8/Materials | Build established: Commander-Skirmisher 7142 | -8/Materials | Discovered exit to Factory (range 7) 7271 | -8/Materials | Repaired Imp. Treads 7593 | -8/Materials | Build established: Tank 7678 | -8/Materials | First assault squad dispatched 7803 | -8/Materials | Destroyed 9 combat bots 7810 | -8/Materials | Lost 5 parts (1p1n2u1w) 8257 | -8/Materials | Lost 5 parts (1p1n3w) 8283 | -8/Materials | Discovered exit to Factory (range 3) 8404 | -8/Materials | Central database locked down 8637 | -8/Materials | Discovered exit to Factory (range 13) 8650 | -8/Materials | Build established: Scavenger-Skirmisher 9021 | -8/Materials | Identified exit to Garrison 9021 | -8/Materials | Entered Garrison 9050 | -8/Garrison | Discovered exit to Factory (range 50) 9050 | -8/Garrison | Discovered exit to Factory (range 67) 9050 | -8/Garrison | Discovered exit to Factory (range 44) 9050 | -8/Garrison | Discovered new exit (range 32) 9269 | -8/Garrison | Triggered checkpoint 9513 | -8/Garrison | Destroyed 7 combat bots 9767 | -8/Garrison | Garrison Relay disabled 10001 | -8/Garrison | Triggered checkpoint 10005 | -8/Garrison | Core integrity fell below 50% 10283 | -8/Garrison | Spotted B-75 Beast 10315 | -8/Garrison | Destroyed B-75 Beast 10340 | -8/Garrison | Lost 4 parts (1n1u2w) 10646 | -8/Garrison | Triggered checkpoint 10717 | -8/Garrison | Garrison Relay disabled 10770 | -8/Garrison | Found Hvy. Reactive Plating 10869 | -8/Garrison | Triggered checkpoint 11033 | -8/Garrison | Build established: Scavenger-Mutant 11102 | -8/Garrison | Entered Materials 11465 | -8/Materials | Build established: Scavenger-Skirmisher 11558 | -8/Materials | Repaired Gatling Laser+ 12011 | -8/Materials | Garrison activated, responded to threat 12100 | -8/Materials | Identified exit to Garrison 12100 | -8/Materials | Entered Garrison 12487 | -8/Garrison | Phase Generator disabled 12502 | -8/Garrison | Spotted B-75 Beast 12537 | -8/Garrison | Triggered checkpoint 12641 | -8/Garrison | Garrison Relay disabled 12928 | -8/Garrison | Triggered checkpoint 12969 | -8/Garrison | Garrison Relay disabled 13065 | -8/Garrison | Core integrity fell below 20% 13136 | -8/Garrison | Triggered checkpoint 13405 | -8/Garrison | Garrison Relay disabled 13459 | -8/Garrison | Discovered exit to Factory (range 10) 13481 | -8/Garrison | Entered Factory 13481 | -7/Factory | Evolved 2 slots: Propulsion x1, Utility x1 13524 | -7/Factory | Build established: Scavenger-Tank 13607 | -7/Factory | Identified exit to DSF 13607 | -7/Factory | Entered DSF 13608 | -7/DSF | Joined Warlord attack on 0b10 via DSF 13623 | -7/DSF | Additional patrols routed to DSF 13695 | -7/DSF | Lost 5 allies 13743 | -7/DSF | Discovered new exit (range 16) 13843 | -7/DSF | Build established: Trapper-Tank 13985 | -7/DSF | Sterilization system engaged 14005 | -7/DSF | Ambient heat levels rising (+10) 14020 | -7/DSF | Ambient heat levels rising (+10) 14035 | -7/DSF | Ambient heat levels rising (+10) 14046 | -7/DSF | Entered Factory 14046 | -6/Factory | Evolved 2 slots: Power x1, Utility x1 14088 | -6/Factory | Discovered new exit (range 10) 14168 | -6/Factory | Identified exit to Factory 14761 | -6/Factory | Build established: Trapper-Mutant 15246 | -6/Factory | Build established: Scavenger-Skirmisher 15300 | -6/Factory | Cargo convoy interrupted 15380 | -6/Factory | Discovered exit to Factory (range 4) 15580 | -6/Factory | Build established: Trapper-Mutant 15774 | -6/Factory | Repaired Hvy. Reactive Plating 16253 | -6/Factory | Fabricated Hvy. Reactive Plating? 16350 | -6/Factory | Fabricated Enh. Autogun (x1) 16411 | -6/Factory | Spotted B-75 Beast 16496 | -6/Factory | First assault squad dispatched 16720 | -6/Factory | Identified exit to Garrison 16720 | -6/Factory | Entered Garrison 16756 | -6/Garrison | Rescued a captive Derelict 16792 | -6/Garrison | Triggered checkpoint 16804 | -6/Garrison | Garrison Relay disabled 16854 | -6/Garrison | Spotted B-90 Cyclops 16871 | -6/Garrison | Destroyed B-90 Cyclops 16885 | -6/Garrison | Rewired B-90 Cyclops 17020 | -6/Garrison | Discovered new exit (range 6) 17062 | -6/Garrison | Triggered checkpoint 17279 | -6/Garrison | Triggered checkpoint 17357 | -6/Garrison | Lost 5 parts (1p1u3w) 17492 | -6/Garrison | Triggered checkpoint 17519 | -6/Garrison | Garrison Relay disabled 17533 | -6/Garrison | Discovered exit to Factory (range 8) 17589 | -6/Garrison | Build established: Trapper-Skirmisher 17663 | -6/Garrison | Garrison Relay disabled 17687 | -6/Garrison | Discovered exit to Factory (range 19) 17705 | -6/Garrison | Garrison Relay disabled 17923 | -6/Garrison | Entered Factory 18106 | -6/Factory | Identified exit to Garrison 18121 | -6/Factory | Watched by a mysterious "MATRIX" hacker. 18136 | -6/Factory | Entered Garrison 18136 | -6/Garrison | Accompanied by 2 allies 18195 | -6/Garrison | Spotted B-75 Beast 18216 | -6/Garrison | Destroyed B-75 Beast 18308 | -6/Garrison | Triggered checkpoint 18322 | -6/Garrison | Garrison Relay disabled 18512 | -6/Garrison | Triggered checkpoint 18553 | -6/Garrison | Discovered exit to Factory (range 11) 18649 | -6/Garrison | Garrison Relay disabled 18669 | -6/Garrison | Triggered checkpoint 18927 | -6/Garrison | Build established: Scavenger-Skirmisher 19028 | -6/Garrison | Triggered checkpoint 19033 | -6/Garrison | Triggered checkpoint 19068 | -6/Garrison | Destroyed 10 combat bots 19074 | -6/Garrison | Lost 3 parts (1u2w) 19189 | -6/Garrison | Discovered exit to Factory (range 14) 19288 | -6/Garrison | Triggered checkpoint 19340 | -6/Garrison | Garrison Relay disabled 19357 | -6/Garrison | Rescued a captive Derelict 19358 | -6/Garrison | Rescued a captive Derelict 19457 | -6/Garrison | Triggered checkpoint 19536 | -6/Garrison | Garrison Relay disabled 19555 | -6/Garrison | Spotted B-75 Beast 19561 | -6/Garrison | Spotted B-86 Titan 19566 | -6/Garrison | Discovered exit to Factory (range 13) 19570 | -6/Garrison | Found embedded Infiltrators 19587 | -6/Garrison | Entered Factory 19587 | -5/Factory | Accompanied by 2 allies 19587 | -5/Factory | Evolved 2 slots: Propulsion x1, Utility x1 19606 | -5/Factory | Discovered new exit (range 19) 20064 | -5/Factory | Garrison activated, responded to threat 20187 | -5/Factory | First assault squad dispatched 20260 | -5/Factory | Manually triggered Chute Trap 20260 | -5/Factory | Sucked down chute 20260 | -5/Factory | Entered Waste 20291 | -5/Waste | Spotted C-40 Crusher 20293 | -5/Waste | Spotted C-40 Crusher 20308 | -5/Waste | Spotted C-40 Crusher 20336 | -5/Waste | Destroyed C-40 Crusher 20374 | -5/Waste | Spotted C-40 Crusher 20385 | -5/Waste | Spotted C-40 Crusher 20390 | -5/Waste | Destroyed C-40 Crusher 20431 | -5/Waste | Destroyed C-40 Crusher 20435 | -5/Waste | Destroyed C-40 Crusher 20471 | -5/Waste | Spotted C-40 Crusher 20526 | -5/Waste | Destroyed C-40 Crusher 20600 | -5/Waste | Destroyed C-40 Crusher 20648 | -5/Waste | Discovered new exit (range 22) 20950 | -5/Waste | Build established: Scavenger-Mutant 22984 | -5/Waste | Entered Factory 23022 | -5/Factory | Discovered new exit (range 19) 23048 | -5/Factory | Identified exit to Upper Caves 23306 | -5/Factory | Repaired Broken Adv. Corruption Screen 23613 | -5/Factory | Build established: Skirmisher 23655 | -5/Factory | Discovered new exit (range 15) 23960 | -5/Factory | Fabricated M-13 Machinist (x1) 23960 | -5/Factory | Repaired Antigrav Array? 24158 | -5/Factory | Entered Upper Caves 24158 | -5/Upper Caves | Accompanied by 1 ally 24164 | -5/Upper Caves | Met a Warlord Commander 24165 | -5/Upper Caves | Learned location of Warlord (-5) 24166 | -5/Upper Caves | Warlord Commander delivered Encrypted Comm Array 24172 | -5/Upper Caves | Found Encrypted Comm Array 24692 | -5/Upper Caves | Encountered a Warlord checkpoint 24849 | -5/Upper Caves | Learned Armory trap positions 24849 | -5/Upper Caves | Learned Armory stockpile data 24849 | -5/Upper Caves | Learned Research emergency access door positions 24891 | -5/Upper Caves | Destroyed SH-3W3(g) 25071 | -5/Upper Caves | Attracted the attention of an 0b10 outpost 25187 | -5/Upper Caves | Discovered new exit (range 11) 25296 | -5/Upper Caves | Entered another Upper Caves area 25296 | -5/Upper Caves | Accompanied by 1 ally 25297 | -5/Upper Caves | Identified exit to Warlord 25306 | -5/Upper Caves | Found Alien Artifact 25345 | -5/Upper Caves | Build established: Tank 25437 | -5/Upper Caves | Discovered new exit (range 17) 25675 | -5/Upper Caves | Build established: Skirmisher 25972 | -5/Upper Caves | Attracted the attention of an 0b10 outpost 26376 | -5/Upper Caves | Build established: Scavenger-Tank 26395 | -5/Upper Caves | Attracted the attention of an 0b10 checkpoint 26533 | -5/Upper Caves | Learned Factory interactive machine intel 26845 | -5/Upper Caves | Entered Warlord 26952 | -5/Warlord | Build established: Trapper-Gunner 27177 | -5/Warlord | Found Prototype Reactor 27177 | -5/Warlord | Identified Vortex Chain Reactor 27214 | -5/Warlord | Found Prototype Device 27214 | -5/Warlord | Identified Exp. Focal Shield 27226 | -5/Warlord | Found Prototype Device 27227 | -5/Warlord | Identified Exp. Cloaking Device 27247 | -5/Warlord | Found Prototype Processor 27247 | -5/Warlord | Identified Exp. Target Analyzer 27252 | -5/Warlord | Found Prototype Hackware 27323 | -5/Warlord | Visited the Vortex Lab 27332 | -5/Warlord | Found Prototype Energy Cannon 27333 | -5/Warlord | Identified Vortex Cannon 27334 | -5/Warlord | Warlord's base attacked by MAIN.C 27337 | -5/Warlord | Found Vortex Cannon 27403 | -5/Warlord | Met Warlord 27468 | -5/Warlord | Build established: Trapper-Tank 27684 | -5/Warlord | Warlord forces counterattacked 27743 | -5/Warlord | Spotted Striker 27756 | -5/Warlord | Spotted Executioner 27816 | -5/Warlord | Lost 9 allies 27827 | -5/Warlord | Spotted Striker 27927 | -5/Warlord | Spotted Executioner 27932 | -5/Warlord | Destroyed Executioner 27934 | -5/Warlord | Lost 14 allies 27958 | -5/Warlord | Spotted Striker 27960 | -5/Warlord | Spotted Striker 27962 | -5/Warlord | Found Exp. Core Analyzer 28007 | -5/Warlord | Lost 6 allies 28009 | -5/Warlord | Warlord base infiltrated, sounded retreat 28087 | -5/Warlord | Discovered new exit (range 22) 28177 | -5/Warlord | Spotted Striker 28234 | -5/Warlord | Spotted Executioner 28234 | -5/Warlord | Spotted Executioner 28234 | -5/Warlord | Entered Proximity Caves 28296 | -4/Proximity Caves | Found Prototype Special Weapon 28296 | -4/Proximity Caves | Identified Molecular Deconstructor 28575 | -4/Proximity Caves | Attracted the attention of an 0b10 checkpoint 28620 | -4/Proximity Caves | Spotted B-86 Titan 28663 | -4/Proximity Caves | Destroyed B-86 Titan 28695 | -4/Proximity Caves | Discovered new exit (range 5) 29124 | -4/Proximity Caves | Entered Factory 29124 | -4/Factory | Evolved 2 slots: Propulsion x2 29125 | -4/Factory | Loaded intel: 54 interactive machine locations 29140 | -4/Factory | Identified System Mapper 29153 | -4/Factory | Identified exit to Upper Caves 29153 | -4/Factory | Identified exit to Extension 29153 | -4/Factory | Identified exit to Armory 29272 | -4/Factory | Identified Dimensional Node Initializer 29372 | -4/Factory | Repaired Cmb. Linear Gravjet 29479 | -4/Factory | Repaired Hvy. Hardcell Cannon? 29924 | -4/Factory | Entered Extension 29970 | -4/Extension | Initialized slip node 30308 | -4/Extension | Build established: Trapper-Mutant 30540 | -4/Extension | Spotted B-86 Titan 30540 | -4/Extension | Spotted B-86 Titan 30615 | -4/Extension | Rescued a captive Derelict 30618 | -4/Extension | Rescued A7 30668 | -4/Extension | Rescued a captive Derelict 30744 | -4/Extension | Rescued a captive Derelict 30753 | -4/Extension | Rescued a captive Derelict 30798 | -4/Extension | Discovered new exit (range 10) 30799 | -4/Extension | Discovered new exit (range 6) 30838 | -4/Extension | Entered Cetus 30838 | -4/Cetus | Accompanied by 8 allies (A7) 30840 | -4/Cetus | Spotted Cetus Guard 30841 | -4/Cetus | Spotted Cetus Guard 30843 | -4/Cetus | Acquired a Cetus Manufacturing Module code from A7 30848 | -4/Cetus | Spotted Cetus Guard 30848 | -4/Cetus | Spotted Cetus Guard 30858 | -4/Cetus | Allies destroyed Cetus Guard 30861 | -4/Cetus | Allies destroyed Cetus Guard 30863 | -4/Cetus | Destroyed Cetus Guard 30871 | -4/Cetus | Allies destroyed Cetus Guard 30890 | -4/Cetus | Lost 4 allies 30958 | -4/Cetus | Escorted A7 to Cetus Mainframe 30967 | -4/Cetus | Started Cetus Manufacturing Module 30969 | -4/Cetus | Discovered new exit (range 22) 30992 | -4/Cetus | Manufactured an Enhanced Grunt 31017 | -4/Cetus | Manufactured an Enhanced Grunt 31042 | -4/Cetus | Manufactured an Enhanced Grunt 31067 | -4/Cetus | Manufactured an Enhanced Grunt 31092 | -4/Cetus | Manufactured an Enhanced Grunt 31129 | -4/Cetus | Spotted Cetus Guard 31129 | -4/Cetus | Spotted Cetus Guard 31129 | -4/Cetus | Spotted Cetus Guard 31129 | -4/Cetus | Spotted Cetus Guard 31130 | -4/Cetus | Discovered new exit (range 22) 31155 | -4/Cetus | Allies destroyed Cetus Guard 31156 | -4/Cetus | Allies destroyed Cetus Guard 31157 | -4/Cetus | Allies destroyed Cetus Guard 31168 | -4/Cetus | Allies destroyed Cetus Guard 31192 | -4/Cetus | Lost 5 allies 31209 | -4/Cetus | Met Revision 17 31588 | -4/Cetus | Security sweep announced 32042 | -4/Cetus | Entered Archives 32042 | -4/Archives | Accompanied by 3 allies 32125 | -4/Archives | Discovered new exit (range 23) 32139 | -4/Archives | Discovered new exit (range 23) 32161 | -4/Archives | Discovered new exit (range 22) 36496 | -4/Archives | Entered Hub_04(d) 36496 | -4/Hub_04(d) | Accompanied by 3 allies 36496 | -4/Hub_04(d) | Spotted B-86 Titan 36604 | -4/Hub_04(d) | Identified exit to Research 36866 | -4/Hub_04(d) | Network Hub disabled 36867 | -4/Hub_04(d) | Network Hub disabled 36973 | -4/Hub_04(d) | Spotted Lightning 36977 | -4/Hub_04(d) | Spotted Lightning 36977 | -4/Hub_04(d) | Spotted Lightning 36980 | -4/Hub_04(d) | Network Hub disabled 36983 | -4/Hub_04(d) | Entered Research 36983 | -3/Research | Evolved 2 slots: Propulsion x1, Utility x1 37011 | -3/Research | Lost 3 parts (1p2n) 37116 | -3/Research | Identified exit to Quarantine 37183 | -3/Research | Revision forces began assault on 0b10 37276 | -3/Research | Met up with Revision 17++ 37427 | -3/Research | Targeted by mysterious "MATRIX" hacker. 37455 | -3/Research | Identified exit to Research 37497 | -3/Research | Central database locked down 37683 | -3/Research | Research terminal network offline 37716 | -3/Research | Murdered Revision 17++ 37802 | -3/Research | Spotted Executioner 37802 | -3/Research | Spotted Striker 37888 | -3/Research | Spotted Striker 37991 | -3/Research | Build established: Trapper-Sprinter 38017 | -3/Research | Fabricated Cmb. Linear Gravjet? 38238 | -3/Research | Entered another Research area 38238 | -2/Research | Warlord forces began assault on 0b10 38238 | -2/Research | Evolved 2 slots: Power x1, Propulsion x1 38254 | -2/Research | Identified exit to Access 38263 | -2/Research | Distinguished unit "Knights of the Pentagonal Table" dispatched to help 38263 | -2/Research | Distinguished unit "Lucky Slug" dispatched to help 38348 | -2/Research | Research machine network offline 38475 | -2/Research | Discovered exit to Access (range 12) 38600 | -2/Research | Found Unknown Protection 38600 | -2/Research | Identified Adv. Powered Armor 38606 | -2/Research | Found Adv. Powered Armor 38617 | -2/Research | Met up with Warlord 38628 | -2/Research | Build established: Trapper-Skirmisher 38640 | -2/Research | Borebot progress halted 38659 | -2/Research | Borebot progress halted 38764 | -2/Research | Found Prototype Device 38764 | -2/Research | Identified Vortex Field Projector 38836 | -2/Research | Found Prototype Processor 38836 | -2/Research | Identified Exp. Melee Analysis Suite 38846 | -2/Research | Found Exp. Hacking Suite 38912 | -2/Research | Found Prototype Hackware 38912 | -2/Research | Identified Exp. System Shield 38965 | -2/Research | Discovered new exit (range 4) 39039 | -2/Research | Borebot progress halted 39051 | -2/Research | Found Prototype Launcher 39051 | -2/Research | Identified Hellfire Missile Launcher 39238 | -2/Research | Warlord invited to help at Command 39238 | -2/Research | Given Cave Seal Controls access code 39301 | -2/Research | Entered Access 39301 | -1/Access | Evolved 2 slots: Utility x2 39345 | -1/Access | Identified exit to Command 39550 | -1/Access | Discovered new exit (range 6) 39619 | -1/Access | Energy Cycler disabled 39626 | -1/Access | Build established: Hacker-Skirmisher 39716 | -1/Access | Entered Command 40015 | -1/Command | Spotted M Guard 40021 | -1/Command | Spotted Combat Programmer 40067 | -1/Command | Spotted M Guard 40072 | -1/Command | Disengaged cave seal 40072 | -1/Command | Derelicts emerged from the dark tunnel 40072 | -1/Command | Welcomed Warlord to Command 40128 | -1/Command | Lost 3 allies 40152 | -1/Command | Lost 8 parts (4p2n1u1w) 40410 | -1/Command | Build established: Scavenger-Mutant 40443 | -1/Command | Disengaged cave seal 40504 | -1/Command | Spotted SZ-4LJ(K) 40504 | -1/Command | Spotted Combat Programmer 40522 | -1/Command | All MAIN.C guards destroyed 40530 | -1/Command | Met MAIN.C 40531 | -1/Command | 0b10 Conduit disabled 40548 | -1/Command | MAIN.C activated Command garrisons 40577 | *** | Establishing Free Derelict Territories! Last Messages --------------- 40548_ Reactivated GX-YFD(L). 40550_ Entropy package works its way towards MAIN.C core. 40550_ GX-YFD(L) sneak attacks. 40550_ MAIN.C suffers critical hit (Destroy). 40551_ GX-YFD(L) sneak attacks. 40551_ U7-QE1(L) knocked back. 40551_ MAIN.C suffers critical hit (Destroy). 40552_ MAIN.C core destabilizing. 40555_ HW-99S(L) knocked back. 40555_ MAIN.C suffers critical hit (Destroy). 40556_ MAIN.C core entropy levels peaking. 40556_ MAIN.C suffers critical hit (Destroy). 40569_ Slug penetrates I-47 Archangel. 40569_ Slug penetrates Wall. Warlord: Victory! Sure there's still lots to do, but without MAIN.C at the helm 0b10 doesn't stand a chance. We've got this... [Achievement: Warlord Forever!] [Achievement: Renaissance Bot] Map ----- +----------------------------------------------------+ | ?????????????????????????# ??????????????????? | | ?????????????????????????# ?????#####???????? | | ??? ???????????????????? ##### #???????? | | ??? ???????????????????????# " #???????? | | ??#" #??????????????????????# #???????? | | ??#%" #?????????????????????#####"/## #???????? | | ??#" #?????????????????????# #????#???????? | | ??# #?????????????????????# #???#????????? | | ??# #?????????????????????# % #?? #????????? | | ??# #?????????????????????# #? #????????? | | ??# #????????????????????###### +### ##???????? | | ??# #?????????????????????" # #???????? | | ??# #????????????????????## =!%+ #???????? | | ??# #????????????????????# =!=# #???????? | | ??# #????????????????????## =!%%# #???????? | | ??# #?????????????????????# [ !%=############## | | ??# #?????????????????????#= !=*%# | | ??# #?????????????????????# !=%!![# | | ??# #?????????????????????# !=[=# | | ??# #?????????????????????# %= # BB | | #?# #?#####?#####?#####???# !=%# DD | | #?# #?# #?# #?# #???# ! DD | | ### W ### W ### W ### W ######;;;= ;;+### #" | | m m / !! = W | | k / [= ! | | % m @ [[ [! | | /% / ^ =! * | | * s ^/ ! =%! | | ### ### W ### W ### W #;####; = # ### ;;### | | #?# #?# #?# #?# ###??# =!% [[= # | | ??# #?#####?#####?#####????### [ K # ! |%! # | | ??# #??????????????????????## ! # | | ??# #??????????????????????# # # | | ??# #??????????????????????# # # " T # | | ??# #??????????????????????### =! # | | ??# #????????????????????????# [ =% # | | ??# #????????????????????????# p ## ### #+#### | | ??# #????????????????????????# != =#### | | ??# #????????????????????????# ! [+ | | ??#" #????????????????????????# ### #### | | ??#%" #????????????????????????# #?# ##??? | | ??#" #????????????????????????# #?# #???? | | ??# #????????????????????????# ### ###?? | | ??# #????????????????????????# +?? | | ??# #????????????????????????# ####?? | | ??# #????????????????????????# #????? | | ??# ?????????????????###+##### #????? | | ???????????????????????# ####?? | | ???????????????????????# ! #?? | | ???????????????????????# =! /! +?? | +----------------------------------------------------+ Best States ------------- Heat Dissipation 90 Coolant Potential 80 Energy Generation 71 Energy Capacity 1200 Matter Stores 300 Matter Capacity 600 Sight Range 23 Robot Scan Range 20 Terrain Scan Density 10 Cloak Strength 4 Corruption Block 20 Armor Coverage 600 Resistance: KI 40 Resistance: EM 15 Evasion (%) 72 Core Analysis 8 Recoil Reduction 6 Matter Filtering 50 Salvage Targeting 2 Offensive Hacking 36 Defensive Hacking 12 Authchip Count 3 Trap Extractor Capacity 6 Item Schematics ----------------- Huge Storage Unit | -10/Materials | Hacked Hcp. Storage Unit | -10/Materials | Hacked Exp. Sensor Array | -8/Materials | Scanalyzed Hacking Suite | -8/Materials | Scanalyzed Med. Reactive Plating | -8/Materials | Scanalyzed Enh. Autogun | -8/Materials | Scanalyzed Imp. Medium Armor Plating | -8/Materials | Scanalyzed Adv. Targeting Computer | -8/Materials | Scanalyzed Imp. Salvage Targeting Computer | -8/Materials | Scanalyzed Hvy. Reactive Plating | -6/Factory | Scanalyzed Lgt. Armored Exoskeleton | -6/Factory | Scanalyzed Triangulator | -6/Factory | Hacked Cmb. Linear Gravjet | -3/Research | Hacked Centrium Medium Armor Plating | -3/Research | Scanalyzed Robot Schematics ------------------ M-13 Machinist | -5/Factory | Hacked Fabricated ------------ Hvy. Reactive Plating | x1 | -6/Factory | Authchip Enh. Autogun | x1 | -6/Factory | Authchip M-13 Machinist | x1 | -5/Factory | Authchip Cmb. Linear Gravjet | x2 | -3/Research Repaired ---------- Lgt. Treads | 30% | -10/Materials Exp. Sensor Array | 62% | -8/Materials | Broken Med. Treads | 67% | -8/Materials Imp. Treads | 9% | -8/Materials Gatling Laser | 38% | -8/Materials Hvy. Reactive Plating | 34% | -6/Factory Adv. Corruption Screen | 57% | -5/Factory | Broken Antigrav Array | 15% | -5/Factory Cmb. Linear Gravjet | 28% | -4/Factory Hvy. Hardcell Cannon | 30% | -4/Factory Studied --------- Autogun | -8/Materials | Hacked Great Maul | -8/Materials | Hacked Wheel | -8/Materials | Hacked Gatling Laser | -8/Materials | Hacked Antigrav Array | -4/Factory | Hacked Cmb. Linear Gravjet | -3/Research | Hacked Imp. Antigrav System | -3/Research | Hacked Antigrav System | -3/Research | Hacked Alien Tech Used ----------------- Dimensional Node Initializer Achievements -------------- Bullet Installation Renaissance Bot Untouchable Warlord Forever! Challenges ------------ None Game ------ Seed LegClaymoresDetonator Manual? 0 Play Time 06:53:49 Cumulative 1354.0 hours Start 2026.02.09 @ 21:37:50 End 2026.02.10 @ 04:52:13 Sessions 3 Manual Loads 0 Difficulty Rogue Special Mode None Game No. 451 Rogue 446 Adventurer 4 Explorer 1 Win Type 7 Total 35 Types 16/5/2/2/1/2/2/1/2/2 Lore% 97 Gallery% 93 Achievement% 86 Wizard Run 0 Options --------- Layout 0 ASCII 0 Keyboard 0 Movement Numpad Keybinds 0 Fullscreen 2 Font 18/SmallcapsGlow Map View 76x50 Zoom Use 0% Tactical HUD 1 Map Filters NONE Filters NONE Steam 1 RUN: 6376fdca-a7c7-4da0-a089-6cb8f94c20d5